Cogmind - Beta 17 @@@ ROGUE MODE // 2026.07.06 @ 19:26:56 Player: Scuttle Result: Escaped! Performance ------------- Evolutions (9) 4500 Regions Visited (35) 7000 Robots Destroyed (751) 3755 Value Destroyed (39099) 39099 Prototype IDs (85) 1700 Alien Tech Used (3) 600 Bonus (67489) 67489 TOTAL SCORE: 124143 Bonus ------- Triggered High Security 1500 High Alert Combat Kills 17108 Follower Combat Kills 4813 Prayed to X0-1V1 5000 Major X0-1V1 Interference 20700 Subatomizer Sterilization 3000 Entered Garrisons 1000 Entered DSFs 500 Acquired ECA 300 Met Warlord at Base 500 MAIN.C Attacked Warlord 500 Warlord Defense Kills 2350 Met Warlord at Research 2000 Scanned by Researcher 500 Destroyed MAIN.C Guards 500 Met MAIN.C 5000 Met Warlord at Command 2000 Win 3000 Friendly Fire -2782 Cogmind --------- Core Integrity 566/1650 Matter 160/800 Energy 231/300 System Corruption 35% Temperature Cool (0) Movement Core (50) Location To Epsilon Eridani Parts ------- > --- POWER (2) -------- (None) > --- PROPULSION (6) --- Advanced Heavy Siege Treads High-density Centrium Heavy Treads > --- UTILITY (13) ----- X0-1V1's Piety Tracker > --- WEAPON (5) ------- (None) > --- INVENTORY (6) ---- Quantum Reactor Advanced Particle Accelerator Cooled Nova Cannon Enhanced Hardcell Cannon Enhanced Hardcell Cannon Advanced Micro-nuke Launcher Peak State ------------ > --- POWER ------------ Graviton Reactor Improved Quantum Reactor > --- PROPULSION ------- Improved Thunder Leg Centrium Leg High-density Centrium Leg Myomer Exoskeleton > --- UTILITY ---------- Experimental Power Amplifier Advanced Heat Sink Large Storage Unit Advanced Signal Interpreter Experimental Core Analyzer Improved Armor Integrity Analyzer Advanced Kinecellerator Improved Transmission Jammer Experimental Phase Shifter Heavy Regenerative Plating Improved Force Field X0-1V1's Piety Tracker > --- WEAPON ----------- KE Penetrator Railgun Helical Railgun Sigix Broadsword > --- INVENTORY -------- Improved Quantum Reactor Heavy Shield Leg Advanced Sensor Array Matter Filter Improved Particle Accelerator Heavy Regenerative Plating Graphene Brace Advanced Focal Shield Experimental EM Shield Heavy Quantum Rifle Enhanced Nova Cannon Compact Linear Accelerator Guided Micro-nuke Launcher [Rating: 246] Favorites ----------- Power Improved Quantum Reactor Engine Improved Deuterium Engine Power Core Micro Nuclear Core Reactor Improved Quantum Reactor Propulsion Light Armored Exoskeleton Treads Light Treads Leg Light Armored Exoskeleton Wheel Compact Wheel Hover Unit Backup Propulsion III Utility X0-1V1's Piety Tracker Device X0-1V1's Piety Tracker Storage High-capacity Storage Unit Processor Advanced Signal Interpreter Hackware Hacking Suite Protection Improved Utility Shielding Weapon KE Penetrator Energy Gun Cooled Pulse Rifle Energy Cannon Advanced Beam Cannon Ballistic Gun KE Penetrator Ballistic Cannon Enhanced Hardcell Cannon Launcher Heavy Missile Launcher Special Weapon Remote Datajack Impact Weapon Heavy Flail Slashing Weapon Sigix Broadsword Special Melee Weapon Chaos Jack Build | -11 -10 -9 -9 -9 -8 -8 -7 -7 -7 -7 -7 -7 -7 -7 -7 -7 -6 -6 -6 -6 -6 -6 -5 -5 -4 -4 -4 -4 -3 -3 -3 -2 -2 -1 -1 ------- Run | Yrd Mat Mat Sto Gar Mat Gar Fac Was Fac Gar Fac Gar Fac Low Low Zio Pro Fac Was Fac Gar Fac Fac DSF Fac Upp Upp War Pro Res Qua Res Tes Acc Com Slots Evolved 18 | . . 2 . . 2 . 2 . . . . . . . . . . 2 . . . . 2 . 2 . . . . 2 . 2 . 2 . Power . | . . . . . . . . . . . . . . . . . . . . . . . . . . . . . . . . . . . . Propulsion 5 | . . 1 . . . . . . . . . . . . . . . 2 . . . . . . . . . . . 1 . 1 . . . Utility 10 | . . 1 . . 1 . 2 . . . . . . . . . . . . . . . 1 . 2 . . . . 1 . 1 . 1 . Weapon 3 | . . . . . 1 . . . . . . . . . . . . . . . . . 1 . . . . . . . . . . 1 . Parts Attached 585 | 7 11 9 11 14 21 10 30 3 3 33 9 21 5 3 . 3 1 32 7 5 23 2 4 2 39 13 3 15 7 37 37 70 44 30 21 Power 75 | 1 2 . 3 2 2 1 4 . . 5 . 4 . . . . . 4 . 1 2 . 1 . 5 2 2 1 . 5 7 6 5 6 4 Engine 16 | 1 2 . 3 . 2 . 3 . . 2 . . . . . . . 1 . . . . . . . 1 . . . . . 1 . . . Core 19 | . . . . 2 . 1 1 . . 2 . 4 . . . . . 3 . 1 1 . 1 . 1 . 2 . . . . . . . . Reactor 40 | . . . . . . . . . . 1 . . . . . . . . . . 1 . . . 4 1 . 1 . 5 7 5 5 6 4 Propulsion 142 | 2 3 3 3 5 4 1 8 . 2 11 4 5 1 . . . . 4 . . 7 . . . 10 4 . 2 1 10 7 20 13 5 7 Treads 37 | 1 1 2 2 3 1 . 3 . . 9 1 3 . . . . . . . . 4 . . . . 1 . . . . 1 1 . 1 3 Leg 74 | . . . . . . . . . . . . . . . . . . 4 . . 3 . . . 9 3 . 2 1 10 5 19 13 4 1 Wheel 30 | 1 2 1 1 2 3 1 5 . 2 2 3 2 1 . . . . . . . . . . . 1 . . . . . . . . . 3 Hover 1 | . . . . . . . . . . . . . . . . . . . . . . . . . . . . . . . 1 . . . . Flight . | . . . . . . . . . . . . . . . . . . . . . . . . . . . . . . . . . . . . Utility 208 | 1 3 1 . 1 5 3 11 2 1 11 5 5 2 3 . 2 1 14 3 2 9 1 3 1 17 4 1 8 2 11 15 31 12 12 5 Device 145 | 1 2 1 . 1 2 2 4 1 . 7 4 5 1 2 . . . 9 2 1 8 . 2 1 12 3 1 4 1 10 13 20 10 10 5 Storage 6 | . 1 . . . . 1 2 . . . . . . . . . . . . . . . . . 1 . . . . . . 1 . . . Processor 21 | . . . . . . . 1 . . . . . . 1 . . . 3 . . 1 . 1 . 2 . . 1 1 1 2 5 1 1 . Hackware 4 | . . . . . . . . . . . . . . . . 2 . 1 . . . . . . . . . . . . . 1 . . . Protection 32 | . . . . . 3 . 4 1 1 4 1 . 1 . . . 1 1 1 1 . 1 . . 2 1 . 3 . . . 4 1 1 . Artifact . | . . . . . . . . . . . . . . . . . . . . . . . . . . . . . . . . . . . . Weapon 160 | 3 3 5 5 6 10 5 7 1 . 6 . 7 2 . . 1 . 10 4 2 5 1 . 1 7 3 . 4 4 11 8 13 14 7 5 Energy Gun 60 | . 1 3 3 5 6 2 2 1 . 2 . 2 . . . . . 4 2 . 4 1 . . 2 1 . . 2 5 2 6 2 1 1 Energy Cannon 17 | . . . 2 . 1 1 . . . 1 . 1 . . . . . . . . . . . 1 1 . . 3 . 2 . . 2 1 1 Ballistic Gun 58 | 3 1 . . 1 1 2 3 . . 2 . 3 . . . 1 . 5 1 1 1 . . . 4 2 . 1 2 4 3 5 8 3 1 Ballistic Cannon 9 | . . 1 . . . . . . . . . . 1 . . . . 1 . . . . . . . . . . . . . 1 1 2 2 Launcher 11 | . 1 1 . . 1 . 1 . . 1 . 1 1 . . . . . 1 1 . . . . . . . . . . . 1 1 . . Special Weapon 1 | . . . . . . . 1 . . . . . . . . . . . . . . . . . . . . . . . . . . . . Impact Weapon . | . . . . . . . . . . . . . . . . . . . . . . . . . . . . . . . . . . . . Slashing Weapon 4 | . . . . . 1 . . . . . . . . . . . . . . . . . . . . . . . . . 3 . . . . Piercing Weapon . | . . . . . . . . . . . . . . . . . . . . . . . . . . . . . . . . . . . . Special Melee Weapon . | . . . . . . . . . . . . . . . . . . . . . . . . . . . . . . . . . . . . Unidentified Prototypes 60 | . 1 2 . . 1 . 2 . . . . . 1 1 . . . 1 . . 2 1 . . . . . 10 2 3 8 9 11 3 2 Corrupted Parts 4 | . . . . . . 1 . . . . . . . . . . . . . . . . . . . . . . 1 . 1 1 . . . System Corruption 13 | . . . . . . 3 . . . . . . . . . . . . . . . . . . . . . . 5 . 2 3 . . . Parts Lost 192 | . 1 1 2 7 10 3 6 . . 16 . 6 . . . . 8 11 . . 2 3 . 6 4 10 . 5 2 16 27 4 5 28 9 Power 26 | . . . . . 1 . 1 . . 1 . 1 . . . . 2 1 . . . 1 . 2 1 2 . 1 . 1 5 1 1 4 . Propulsion 39 | . . 1 1 2 3 . 1 . . 8 . 1 . . . . 1 1 . . . . . . 1 1 . 1 . 1 8 . . 3 5 Utility 68 | . . . . 1 2 . 3 . . 4 . 2 . . . . 3 5 . . 1 2 . 2 1 4 . 3 2 4 6 2 4 15 2 Weapon 59 | . 1 . 1 4 4 3 1 . . 3 . 2 . . . . 2 4 . . 1 . . 2 1 3 . . . 10 8 1 . 6 2 Highest Loss Streak 14 | . 1 1 1 3 5 1 4 . . 6 . 3 . . . . 7 6 . . 1 2 . 6 2 5 . 3 1 6 13 3 3 14 4 To Critical Strikes 4 | . . . . . . . . . . . . . . . . . . 1 . . 1 . . . . . . . . . 1 . . . 1 Average Backups 15 | 2 7 12 18 18 17 18 17 17 16 15 17 17 17 17 18 18 17 14 18 19 17 18 14 14 14 12 14 15 20 17 16 10 13 11 4 Power 1 | . 1 1 1 1 1 1 . . 1 1 1 . . . . . . . . . 1 1 . . . . . . 2 2 2 1 1 . 1 Propulsion 2 | 1 3 5 5 4 2 2 3 4 3 3 3 4 4 5 5 5 4 1 2 2 2 3 3 3 2 2 2 1 3 2 1 1 1 1 . Utility 6 | . . 1 3 4 5 7 7 6 7 6 7 7 8 7 8 8 7 8 10 9 8 7 5 5 4 3 3 4 5 5 6 4 6 4 1 Weapon 5 | . 2 4 8 8 7 7 5 5 5 4 5 5 4 5 5 5 5 4 6 7 5 7 6 6 6 6 8 9 9 5 5 3 4 4 1 Tool/Special . | . . . . . . . . . . . . . . . . . . . . . . . . . . . . . . . . . . . . Unused Backups 79 | . . 2 11 . 4 3 5 3 . 1 2 . 2 . . . . 2 . 1 9 . . . . . . 2 1 7 2 7 7 4 4 Power 18 | . . 1 1 . 1 . 1 1 . . 2 . . . . . . . . . 1 . . . . . . . 1 3 . 1 4 . 1 Propulsion 16 | . . . 6 . . . 1 . . . . . . . . . . . . . 1 . . . . . . . . 2 . 4 . 2 . Utility 27 | . . . . . 3 2 2 . . 1 . . 2 . . . . 2 . 1 6 . . . . . . . . 2 1 1 1 1 2 Weapon 16 | . . 1 4 . . 1 . 2 . . . . . . . . . . . . 1 . . . . . . 2 . . . 1 2 1 1 Tool/Special 2 | . . . . . . . 1 . . . . . . . . . . . . . . . . . . . . . . . 1 . . . . Average Slot Usage (%) 88 | . 93 99 99 96 94 90 90 91 91 94 94 96 91 91 92 91 87 79 84 86 78 86 83 80 89 92 93 92 87 93 83 86 89 77 14 Engine 4 | . 13 11 11 5 6 14 11 15 14 12 15 2 . . . . . 4 . . . . . . . . . . . . . . . . . Core 3 | . . . . 4 4 3 3 . . 1 . 12 15 14 14 14 10 6 11 11 9 5 5 4 2 . 5 5 . . . . . . . Reactor 2 | . . . . . . . . . . . . . . . . . . . . . 2 6 5 3 7 7 2 2 5 7 7 6 7 6 . Treads 5 | . 7 11 12 10 11 9 7 2 . 16 11 7 . . . . . . . . 10 . . . . . . . . . . . . . 5 Leg 9 | . . . . . . . . . . . . . . . . . . 16 17 18 8 25 22 22 22 24 25 25 22 22 18 19 23 13 2 Wheel 4 | . 13 11 9 14 15 9 13 15 18 2 5 12 14 14 14 14 13 . . . . . . . . . . . . . . . . . . Device 18 | . 13 21 22 19 15 18 14 15 14 17 22 20 22 21 21 20 17 15 17 13 17 17 17 20 19 21 25 24 18 18 22 19 21 21 1 Storage 6 | . 12 11 11 10 9 9 7 7 7 7 7 7 7 7 7 7 7 5 5 6 6 6 5 5 5 5 5 5 5 4 3 2 3 2 . Processor 7 | . . . . . . . . . . . . . . 3 7 7 7 11 11 12 12 11 10 11 14 15 15 15 16 19 15 13 12 10 . Protection 3 | . . . . . 6 . 7 7 7 9 7 8 7 7 7 7 9 . . 4 . . . . 4 2 . . 4 1 . 5 3 3 . Energy Gun 9 | . . 15 29 25 22 22 2 10 14 12 15 13 14 14 14 14 13 3 3 6 5 9 11 9 4 2 4 2 . 8 2 7 2 1 . Ballistic Gun 8 | . 28 5 . . . 4 19 15 11 8 7 6 7 7 7 7 7 9 11 12 3 . 4 4 9 12 10 12 15 9 7 7 9 6 . Peak Build Rating 246 | 6 23 33 36 43 43 50 57 64 63 62 64 64 68 67 67 68 68 82 86 85 114 99 105 107 125 127 123 150 152 186 186 210 234 246 80 Average Rating 96 | 4 16 29 34 35 37 48 52 60 62 50 57 58 64 64 67 67 60 75 82 84 94 96 98 98 113 117 119 130 146 169 152 163 208 217 49 On Entrance 76 | . 6 23 32 35 33 43 49 55 63 62 56 55 64 63 67 67 68 20 82 85 84 97 80 105 73 122 114 120 150 149 167 38 199 204 15 Avg Prop Armor Cover (%) 11 | 14 11 9 9 9 8 7 4 4 . 4 7 7 6 . . . . 13 . . 11 . . . . . . . . . 22 9 1 16 42 Naked Turns . | . . . . . . . . . . . . . . . . . . . . . . . . . . . . . . . . . . . . Heaviest Build 152 | 10 55 60 61 70 76 70 90 94 94 99 93 93 77 78 72 73 75 82 76 76 78 84 81 83 98 97 91 115 106 133 128 113 124 152 31 Greatest Support 212 | 20 16 16 43 46 32 28 32 32 44 60 40 28 40 40 40 40 40 78 76 76 170 92 92 92 118 118 116 129 129 180 138 172 180 212 170 Greatest Overweight (x) 7 | . 3 3 3 4 4 4 5 2 2 4 7 3 2 1 1 1 6 1 . . 1 . . . 1 . . 1 1 . 3 4 . 1 4 Average Overweight (x) . | . 2 3 2 1 2 2 2 2 2 1 2 2 1 1 1 1 1 . . . . . . . . . . . . . . . . . . Largest Inventory Capacity 21 | 5 20 20 21 21 21 21 21 21 21 21 21 21 21 21 21 21 21 21 21 21 21 21 21 21 21 21 21 21 21 21 21 16 16 16 6 Average Capacity 19 | 5 19 20 20 21 21 21 21 21 21 21 21 21 21 21 21 21 21 21 21 21 21 21 21 21 21 21 21 21 21 21 20 13 16 15 6 Most Carried 21 | 3 11 18 21 21 21 21 21 21 21 21 21 21 21 21 21 21 21 21 21 21 21 21 20 17 21 20 17 21 21 21 21 16 16 16 6 Average Carried 17 | 2 7 12 18 18 18 19 20 20 20 18 20 20 20 20 21 21 20 15 19 20 19 20 16 16 15 14 15 16 20 17 18 11 15 14 5 Final Capacity 21 | 5 20 20 21 21 21 21 21 21 21 21 21 21 21 21 21 21 21 21 21 21 21 21 21 21 21 21 21 21 21 21 6 16 16 6 6 Final Carried 21 | 3 9 18 21 17 18 21 21 21 21 20 20 21 21 21 21 21 20 16 20 21 21 20 16 17 20 13 16 21 21 16 6 16 16 6 6 Class Distribution -------------------- 22% | Scavenger-Gunner 22% | Scavenger-Tank 12% | Gunner 11% | Tank 10% | Mutant 6% | Scavenger-Skirmisher 4% | Scavenger-Mutant 3% | Skirmisher Dominant Class ---------------- Mutant | -10/Materials Gunner | -9/Materials Commander-Gunner | -9/Storage Mutant | -9/Garrison Tank | -8/Materials Gunner | -8/Garrison Tank | -7/Factory Tank | -7/Waste Tank | -7/Factory Scavenger-Tank | -7/Garrison Commander-Tank | -7/Factory Tank | -7/Garrison Scavenger-Tank | -7/Factory Scavenger-Tank | -7/Lower Caves Scavenger-Tank | -7/Lower Caves Scavenger-Tank | -7/Zion Scavenger-Tank | -6/Proximity Caves Mutant | -6/Factory Skirmisher | -6/Waste Gunner | -6/Factory Scavenger-Tank | -6/Garrison Scavenger-Mutant | -6/Factory Scavenger-Skirmisher | -5/Factory Scavenger-Gunner | -5/DSF Scavenger-Gunner | -4/Factory Scavenger-Gunner | -4/Upper Caves Scavenger-Gunner | -4/Upper Caves Scavenger-Gunner | -4/Warlord Scavenger-Gunner | -3/Proximity Caves Scavenger-Skirmisher | -3/Research Scavenger-Skirmisher | -3/Quarantine Scavenger-Tank | -2/Research Scavenger-Gunner | -2/Testing Scavenger-Gunner | -1/Access Mutant | -1/Command Resources | -11 -10 -9 -9 -9 -8 -8 -7 -7 -7 -7 -7 -7 -7 -7 -7 -7 -6 -6 -6 -6 -6 -6 -5 -5 -4 -4 -4 -4 -3 -3 -3 -2 -2 -1 -1 ----------- Run | Yrd Mat Mat Sto Gar Mat Gar Fac Was Fac Gar Fac Gar Fac Low Low Zio Pro Fac Was Fac Gar Fac Fac DSF Fac Upp Upp War Pro Res Qua Res Tes Acc Com Matter Collected 28593 | 317 297 473 607 888 589 593 1262 181 91 1655 206 1856 169 93 69 114 35 960 175 153 1238 307 . . 981 1171 198 865 439 2654 1518 1924 2656 2912 947 Remotely . | . . . . . . . . . . . . . . . . . . . . . . . . . . . . . . . . . . . . Salvage Created 37377 | 144 563 598 815 1225 1794 1732 2006 217 87 1649 192 1489 340 . . . 122 1562 . 194 1744 567 . . 1664 1487 598 918 312 4336 1634 1432 3793 3766 397 Parts 1748 | 12 43 33 51 75 101 88 116 13 8 76 5 58 16 . . . 1 73 . 8 68 19 . . 77 58 12 42 17 182 94 50 199 136 17 Haulers Intercepted 30 | . 2 2 5 . 2 . 5 . . . 1 . . . . . . . . . . 1 . . 2 . . . . 2 2 3 1 2 . Recyclers Shooed 22 | 1 3 . 1 . 3 . 3 . . . . . . . . . . 3 . 1 . . . . . . . . . 2 . . . 4 1 Parts Field Recycled . | . . . . . . . . . . . . . . . . . . . . . . . . . . . . . . . . . . . . Retrieved Matter . | . . . . . . . . . . . . . . . . . . . . . . . . . . . . . . . . . . . . Parts Self-Destructed 71 | . . . . . . . . . . . . . . . . . . . . . . . . . . 52 6 . 13 . . . . . . Prevented 2 | . . . . . . . . . . . . . . . . . . . . . . . . . . . 2 . . . . . . . . Parts Restored . | . . . . . . . . . . . . . . . . . . . . . . . . . . . . . . . . . . . . Kills | -11 -10 -9 -9 -9 -8 -8 -7 -7 -7 -7 -7 -7 -7 -7 -7 -7 -6 -6 -6 -6 -6 -6 -5 -5 -4 -4 -4 -4 -3 -3 -3 -2 -2 -1 -1 ------- Run | Yrd Mat Mat Sto Gar Mat Gar Fac Was Fac Gar Fac Gar Fac Low Low Zio Pro Fac Was Fac Gar Fac Fac DSF Fac Upp Upp War Pro Res Qua Res Tes Acc Com Combat Hostiles Destroyed 584 | . 18 15 9 33 32 39 30 . . 45 3 30 5 . . . 3 22 . . 19 7 . . 19 19 2 18 8 54 17 14 55 62 6 Melee 6 | . . . . . . . . . . . . . . . . . . . . . . . . . . . . . . . 1 . 5 . . Guns 417 | . 14 8 4 20 16 32 17 . . 29 3 20 3 . . . 1 13 . . 18 2 . . 17 19 2 18 8 49 13 13 44 34 . Cannons 41 | . 2 4 . 4 . . . . . . . 1 . . . . . 5 . . . . . . . . . . . 4 3 . . 13 5 AOE 112 | . 2 3 5 9 15 7 13 . . 16 . 7 2 . . . 2 3 . . . 5 . . 2 . . . . . . . 6 15 . Classes Destroyed 27 | 2 5 . 2 1 4 . 1 1 . . . . . . . . . . . . 2 1 . . 1 . . . 2 2 . . 2 1 . Worker 40 | . . . 1 . 7 . 3 . . . . . 3 . . . . 8 . . . . . . . . . . . 4 1 . 5 7 1 Builder 22 | . 1 . 1 . 1 . 5 . 1 . 1 . . . . . . 2 . 2 . 1 . . . . . . . 1 2 . 4 . . Tunneler 7 | 3 . . . . . . 1 . . . . . . . . . . 1 . . . . . . 1 . . . . 1 . . . . . Hauler 30 | . 2 2 5 . 2 . 5 . . . 1 . . . . . . . . . . 1 . . 2 . . . . 2 2 3 1 2 . Recycler 34 | 1 1 . 2 . 4 . 8 . 1 . . . 1 . . . . 3 . 1 . 1 . . 1 . . . . 2 1 2 . 4 1 Mechanic 4 | . . . . . 1 . 1 . . . . . . . . . . 2 . . . . . . . . . . . . . . . . . Operator 1 | . . . . . . . . . . . . . . . . . . . . . . . . . . . . . . 1 . . . . . Drone 4 | . . . . . . . . . . . . . . . . . . . . . . . . . . . . . 3 . . . 1 . . Watcher 14 | . . . 1 . 1 . . . . . . . . . . . . 2 . 1 . . . . . . . . . 6 2 . 1 . . Swarmer 126 | . 12 3 4 8 12 13 1 . . 16 . 7 . . . . . 3 . . 8 . . . . 2 . 1 3 9 . 3 5 12 4 Cutter 1 | . . . . . . . . . . . . . . . . . . . . . . . . . 1 . . . . . . . . . . Saboteur 11 | . . . . . . . . . . . . . . . . . . . . . . 1 . . . . . 5 . . . . 3 2 . Grunt 202 | . 5 6 . 19 10 14 11 . . 12 3 12 4 . . . 2 8 . . 8 4 . . 11 8 . 4 . 21 4 1 20 15 . Brawler 20 | . . . . . 3 6 1 . . 2 . . . . . . . . . . . 2 . . . 1 . 1 . 2 . . . 2 . Duelist 17 | . . . . . 3 . 2 . . 4 . . . . . . 1 1 . . . . . . . . . . . 2 . . 2 2 . Protector 1 | . . . . . . . . . . . . . . . . . . . . . . . . . . . . . . 1 . . . . . Researcher 3 | . . . . . . . . . . . . . . . . . . . . . . . . . . . . . . . . . 3 . . Sentry 54 | . 1 6 5 2 3 5 3 . . 5 . 4 . . . . . 3 . . 1 . . . 5 2 . . . 2 1 3 1 2 . Demolisher 2 | . . . . . . . . . . . . . . . . . . . . . . . . . . . . . . . . 2 . . . Specialist 7 | . . . . . . . 1 . . 2 . 4 . . . . . . . . . . . . . . . . . . . . . . . Hunter 40 | . . . . . 2 1 2 . . 1 . 1 . . . . . 2 . . . . . . . 4 . 2 2 5 . 1 6 11 . Programmer 89 | . . . . 5 . . 9 . . 2 . 3 1 . . . . 5 . . . . . . 2 2 2 2 . 12 12 3 13 14 2 Heavy 1 | . . . . . . . . . . . . . . . . . . . . . . . . . . . . . . . . . . 1 . Behemoth 1 | . . . . . . . . . . . . . . . . . . . . . . . . . . . . . . . . . 1 . . Enhanced Demolisher 1 | . . . . . . . . . . . . . . . . . . . . . . . . . . . . 1 . . . . . . . Striker 6 | . . . . . . . . . . . . . . . . . . . . . 1 . . . . . . 1 . . . 1 2 1 . Executioner 2 | . . . . . . . . . . . . . . . . . . . . . 1 . . . . . . 1 . . . . . . . Samaritan 1 | . . . . . . . . . . . . . . . . . . . . . . . . . . . . . 1 . . . . . . Surgeon 2 | . . . . . . . . . . 1 . . . . . . . . . . . 1 . . . . . . . . . . . . . Wasp 3 | . . . . . . . . 2 . 1 . . . . . . . . . . . . . . . . . . . . . . . . . Thug 1 | . . . . . . . . . . . . . . . . . . . . . 1 . . . . . . . . . . . . . . Savage 3 | . . . . . . . . . . 1 . . . . . . . . . . . . . . . . . 1 . . . . 1 . . Martyr 3 | . . . . . . . . 3 . . . . . . . . . . . . . . . . . . . . . . . . . . . Infiltrator 1 | . . . . . . . . . . . . . . . . . . . . . 1 . . . . . . . . . . . . . . Best Kill Streak 14 | 4 5 3 4 7 12 4 12 . 1 7 3 8 4 . . . 3 8 . 2 3 7 . . 6 8 2 8 3 8 3 5 14 10 4 Combat Bots Only 14 | . 3 3 4 7 10 4 10 . . 7 2 8 4 . . . 3 3 . . 3 5 . . 6 8 2 8 3 7 3 5 14 10 4 Max Kills in Single Turn 5 | 1 3 2 3 2 4 3 2 1 1 3 1 3 2 . . . 2 3 . 1 2 3 . . 1 2 2 2 1 2 2 2 2 5 1 Gunslinging 1 | . 1 . . 1 . 1 . . . 1 . . . . . . . 1 . . . . . . . 1 1 1 . 1 . 1 1 . . Exploded 5 | . 2 2 3 2 4 3 2 . . 3 . 3 1 . . . 2 2 . . . 2 . . 1 . . . . . . . 1 5 . Melee 1 | . . . . . . . . . . . . . . . . . . . . . . . . . . . . . . . 1 . 1 . . Uniques/NPCs Destroyed . | . . . . . . . . . . . . . . . . . . . . . . . . . . . . . . . . . . . . Combat | -11 -10 -9 -9 -9 -8 -8 -7 -7 -7 -7 -7 -7 -7 -7 -7 -7 -6 -6 -6 -6 -6 -6 -5 -5 -4 -4 -4 -4 -3 -3 -3 -2 -2 -1 -1 -------- Run | Yrd Mat Mat Sto Gar Mat Gar Fac Was Fac Gar Fac Gar Fac Low Low Zio Pro Fac Was Fac Gar Fac Fac DSF Fac Upp Upp War Pro Res Qua Res Tes Acc Com Hostile Shots Fired 5726 | . 88 32 26 123 126 63 217 . . 455 12 345 42 . . . 121 275 . 6 130 164 . 75 130 137 18 172 70 435 432 187 582 1009 254 Missed 2046 | . 31 16 7 31 28 15 84 . . 158 4 108 19 . . . 39 97 . . 45 69 . 15 37 45 6 75 34 144 137 89 191 429 93 Deflected 16 | . . . . . . . . . . . . . . . . . . . . . . . . . . . . . . . . . 7 9 . Hits 3680 | . 57 16 19 92 98 48 133 . . 297 8 237 23 . . . 82 178 . 6 85 95 . 60 93 92 12 97 36 291 295 98 391 580 161 Melee 154 | . . . . . 7 . 5 . . 11 . . . . . . 7 3 . . . 1 . . 7 . . 7 18 5 11 5 36 19 12 Projectile 3526 | . 57 16 19 92 91 48 128 . . 286 8 237 23 . . . 75 175 . 6 85 94 . 60 86 92 12 90 18 286 284 93 355 561 149 AOE 28 | . . . . . . . . . . . . 1 . . . . . . . . . . . . . . . . . . . 7 1 18 1 Critical Strikes 182 | . 1 . 1 2 6 3 2 . . 8 1 5 1 . . . 5 6 . . 2 2 . . 10 2 1 5 2 23 16 2 27 39 10 Actively Blocked 40 | . . . . . . . . . . . . 2 . . . . . . . . . . . . . . . . . . . . 14 24 . Part Disruptions 15 | . . . . 1 . . . . . . . . . . . . . 1 . . . . . . . . . . . 2 2 . 2 3 4 Damage Taken 57581 | . 648 259 341 1181 1709 695 1746 . 12 2938 135 1739 146 . . . 1089 2474 . 139 1045 1048 . 984 2022 1794 196 1576 339 4998 5815 2294 5822 10364 4033 Core 6299 | . 115 38 29 137 239 81 70 . . 385 13 154 13 . . . 161 243 . 26 108 95 . 212 185 125 18 216 4 473 1236 197 279 753 694 Absorbed by Shields 7560 | . . . . 11 . 10 99 . . 507 52 727 64 . . . 212 402 . . 148 208 . . 235 33 42 668 58 611 295 . 1458 1720 . Reduced by Siege Mode 162 | . . . . . . . . . . . . . . . . . . . . . 4 . . . . 38 . . . . . . . . 120 Redirected to Shielding 297 | . . . . . . . . . . 89 2 100 . . . . . . . . . . . . . . . . . . . 106 . . . Ignored by Resistances 4644 | . . . . . 39 . . . . . . 20 . . . . . 56 . . . . . . . . . 271 . 21 296 603 1259 2079 . Regen/Repaired (Parts) 6874 | . . . 30 . . . . 187 . 42 . . . . . . . 63 201 39 96 53 142 . . . . 517 . . 554 474 2222 2254 . Core Remaining (%) 59 | 100 6 . . 88 . 92 . . . . . . . . . . 52 . . . . 47 . 79 . . . . 90 . 3 . 68 . 34 Volleys Fired 1917 | 8 57 30 32 107 84 89 103 15 3 114 8 136 21 8 . 1 6 86 21 7 53 29 . . 66 47 17 51 28 160 91 45 164 165 65 Largest 6 | 2 4 3 3 4 3 3 3 3 4 3 3 3 3 3 . 1 3 4 3 3 3 2 . . 3 3 3 3 3 5 4 6 5 4 3 Hottest 331 | 40 128 145 145 180 158 150 116 70 90 145 123 123 106 106 . 33 114 212 138 147 156 160 . . 194 147 147 147 105 305 201 331 293 213 181 Shots Fired 4868 | 16 156 84 76 217 178 229 274 48 6 287 22 311 43 10 1 1 11 161 23 21 170 45 . . 160 137 41 151 74 569 168 215 437 441 85 Gun 4134 | 16 128 54 63 139 146 213 256 48 4 263 22 278 39 3 1 1 9 113 2 21 165 33 . . 147 135 36 150 69 518 122 215 396 315 14 Cannon 616 | . 27 27 9 74 24 13 1 . . 9 . 25 . 7 . . . 46 18 . 5 . . . 10 2 5 1 5 51 46 . 34 106 71 Launcher 116 | . 1 3 4 4 8 3 15 . 2 15 . 8 4 . . . 2 2 3 . . 12 . . 3 . . . . . . . 7 20 . Special 2 | . . . . . . . 2 . . . . . . . . . . . . . . . . . . . . . . . . . . . . Kinetic 2522 | 16 125 36 3 10 . 29 243 33 2 121 8 96 11 1 . 1 4 58 2 14 81 . . . 100 122 24 141 69 257 77 115 316 347 60 Thermal 1716 | . 30 45 12 87 43 13 6 15 2 151 14 207 28 9 1 . 5 101 18 7 89 33 . . 57 15 17 9 5 303 91 100 114 74 15 Explosive 116 | . 1 3 4 4 8 3 15 . 2 15 . 8 4 . . . 2 2 3 . . 12 . . 3 . . . . . . . 7 20 . Electromagnetic 502 | . . . 57 116 127 184 8 . . . . . . . . . . . . . . . . . . . . . . . . . . . 10 Entropic 10 | . . . . . . . . . . . . . . . . . . . . . . . . . . . . 1 . 9 . . . . . Robot Hit Streak 37 | 6 8 24 9 18 14 17 19 8 2 16 10 37 13 4 . . 5 12 5 4 26 7 . . 14 22 10 16 17 25 13 29 28 14 11 Robot Miss Streak 12 | 1 4 3 2 3 12 4 7 1 . 5 3 4 1 . . . 2 5 1 3 6 4 . . 6 2 1 5 6 4 4 4 7 5 5 Penetration Max 2 | . . . . . . . . . . . . . . . . . . . . 1 1 . . . 1 1 1 2 1 2 2 1 2 2 . Secondary Targets 96 | . 2 . . 5 2 6 4 . . 10 1 7 . . . . . 2 . . . . . . 5 4 1 9 . 16 . 4 13 5 . Max Gunslinging Chain 2 | . 1 . . 1 1 1 1 . . 2 1 1 . . . . . 1 . . . . . . 1 1 1 1 . 2 . 1 1 1 . Autonomous 49 | . . . . . . . . . . . . . . . . . . . . . 49 . . . . . . . . . . . . . . Shots Hit Robots 2925 | 12 79 55 54 89 123 103 172 33 2 165 20 213 27 3 . . 7 106 2 10 126 28 . . 104 110 24 100 28 361 113 136 228 250 42 Core Hits 1733 | 5 29 27 26 63 115 76 107 13 3 101 11 87 17 2 . . 6 100 1 6 70 43 . . 64 53 15 54 19 189 47 56 149 158 21 Critical Kills 33 | . 1 . . . . . . . . . . 1 . . . . . . . . 2 . . . 3 4 . . . 5 6 . 6 4 1 Critical Parts Destroyed 25 | . . . . . . . . . . . . 1 . . . . . . . . . . . . . 3 . 2 . 4 10 . 3 2 . Critical Strikes 132 | . 1 4 . . . . . 1 . 1 . 8 2 . . . . 4 . . 6 . . . 5 8 1 2 . 29 24 8 12 13 3 Burn 56 | . . 3 . . . . . 1 . 1 . 6 2 . . . . 4 . . 4 . . . 1 1 1 . . 15 6 8 3 . . Meltdown 1 | . . . . . . . . . . . . . . . . . . . . . . . . . . . . . . . . . . . 1 Destroy 58 | . 1 . . . . . . . . . . 2 . . . . . . . . 2 . . . 4 7 . 2 . 9 16 . 9 6 . Blast 8 | . . 1 . . . . . . . . . . . . . . . . . . . . . . . . . . . . . . . 5 2 Sever 4 | . . . . . . . . . . . . . . . . . . . . . . . . . . . . . . . 2 . . 2 . Sunder 5 | . . . . . . . . . . . . . . . . . . . . . . . . . . . . . . 5 . . . . . Melee Attacks 85 | . . . . . . . . . . . . . . . . . . . . . . . . . . . . . . . 30 . 35 19 1 Thermal 6 | . . . . . . . . . . . . . . . . . . . . . . . . . . . . . . . 6 . . . . Impact . | . . . . . . . . . . . . . . . . . . . . . . . . . . . . . . . . . . . . Slashing 79 | . . . . . . . . . . . . . . . . . . . . . . . . . . . . . . . 24 . 35 19 1 Piercing . | . . . . . . . . . . . . . . . . . . . . . . . . . . . . . . . . . . . . Sneak Attacks 17 | . . . . . . . . . . . . . . . . . . . . . . . . . . . . . . . 3 . 8 6 . Combat Hostiles 1 | . . . . . . . . . . . . . . . . . . . . . . . . . . . . . . . . . 1 . . Follow-up Attacks 1 | . . . . . . . . . . . . . . . . . . . . . . . . . . . . . . . 1 . . . . Damage Inflicted 97452 | 148 1263 1108 1246 2468 3792 2804 5166 689 128 5214 398 4866 809 63 . . 403 4065 103 338 3774 1766 . 19 2938 2687 882 3045 652 10901 4854 3774 11105 14392 1592 Guns 66628 | 148 776 593 748 1267 2033 2075 3307 689 39 3281 398 3754 450 63 . . 97 1867 37 338 3774 551 . . 2523 2658 882 3045 652 9901 3036 3774 7686 6045 141 Cannons 8087 | . 312 353 80 480 171 . . . . . . 40 . . . . . 848 30 . . . . . . 29 . . . 795 987 . . 2511 1451 Explosions 18866 | . 175 162 418 721 1588 729 1859 . 89 1933 . 1072 359 . . . 306 1350 36 . . 1187 . . 387 . . . . . . . 1893 4602 . Melee 3541 | . . . . . . . . . . . . . . . . . . . . . . . . . . . . . . . 785 . 1522 1234 . Ramming 330 | . . . . . . . . . . . . . . . . . . . . . . 28 . 19 28 . . . . 205 46 . 4 . . Kinetic 42480 | 148 776 422 40 97 . 352 3190 478 . 1203 88 908 113 27 . . 24 961 37 195 1198 . . . 1755 2465 598 2903 652 5920 2118 1818 5902 6907 1185 Thermal 27842 | . 312 524 185 943 877 438 50 211 39 2078 310 2886 337 36 . . 73 1925 30 143 2576 551 . . 768 222 284 142 . 4256 1905 1956 1784 1649 352 Explosive 17300 | . 175 162 319 389 1062 291 1859 . 89 1933 . 1072 359 . . . 306 1179 36 . . 1187 . . 387 . . . . . . . 1893 4602 . Electromagnetic 5439 | . . . 702 1039 1853 1723 67 . . . . . . . . . . . . . . . . . . . . . . . . . . . 55 Impact . | . . . . . . . . . . . . . . . . . . . . . . . . . . . . . . . . . . . . Slashing 3541 | . . . . . . . . . . . . . . . . . . . . . . . . . . . . . . . 785 . 1522 1234 . Piercing . | . . . . . . . . . . . . . . . . . . . . . . . . . . . . . . . . . . . . Entropic 520 | . . . . . . . . . . . . . . . . . . . . . . . . . . . . . . 520 . . . . . Highest Corruption 43 | . 2 1 1 3 3 6 6 6 6 1 11 12 12 7 7 7 . 2 2 . 19 20 . . 1 1 2 6 11 13 43 4 39 29 35 Average Corruption 7 | . 2 1 1 2 2 4 3 6 6 1 11 11 12 7 7 7 . 1 1 . 19 17 . . 1 1 1 5 6 5 11 3 11 5 33 Corruption Purged 2 | . . . . . . . . . . . . . . . . . . . 2 . . . . . . . . . . . . . . . . Corruption Blocked . | . . . . . . . . . . . . . . . . . . . . . . . . . . . . . . . . . . . . Effects 656 | . 5 1 10 10 11 15 31 13 4 12 . 72 3 9 5 2 . 17 9 . 60 31 . . 4 1 . 19 27 46 58 20 63 42 56 Message Errors 154 | . . . 3 2 4 6 8 1 1 2 . 12 . 2 1 . . 3 3 . 14 10 . . 2 1 . 4 4 15 17 5 12 10 12 Matter Fused 150 | . 1 . 4 2 1 2 7 5 2 3 . 20 . 4 1 2 . 6 1 . 23 2 . . . . . 7 8 8 13 2 14 6 6 Heat Flow Errors 68 | . 1 1 2 3 . 2 4 . 1 . . 11 1 2 2 . . 1 1 . 5 2 . . . . . 1 4 6 1 3 6 3 5 Energy Discharges 65 | . 1 . 1 . 3 . 1 1 . 2 . 7 2 1 . . . 2 1 . 5 2 . . 1 . . 3 6 4 6 2 7 2 5 Parts Rejected 11 | . . . . . . . . . . . . 1 . . . . . . 1 . . . . . . . . . . 1 2 1 . 4 1 Parts Fused 9 | . . . . . . . 1 1 . . . . . . . . . . . . . 1 . . . . . 1 . 1 1 1 . 1 1 Data Loss (minor) 71 | . . . . 3 2 1 4 2 . 3 . 9 . . . . . 2 1 . 7 5 . . 1 . . 1 3 3 4 3 6 6 5 Data Loss (major) 28 | . 1 . . . . . 2 1 . 2 . 2 . . . . . 2 1 . 4 1 . . . . . 1 . . 3 2 4 2 . Misfires 23 | . 1 . . . 1 . 2 2 . . . 2 . . 1 . . 1 . . . 2 . . . . . . 1 2 1 1 3 3 . Alerts 9 | . . . . . . 1 1 . . . . 3 . . . . . . . . 1 . . . . . . . . 1 . . 2 . . Misdirections 24 | . . . . . . . . . . . . . . . . . . . . . . 2 . . . . . . . . 4 . . 3 15 Weapon Failures 44 | . . . . . . 3 1 . . . . 5 . . . . . . . . 1 4 . . . . . 1 1 5 6 . 9 2 6 Overload Shots 23 | . . . . . . . . . . 9 . . . . . . . . . . . . . . . . . . . . 5 . . . 9 Effects 2 | . . . . . . . . . . . . . . . . . . . . . . . . . . . . . . . 2 . . . . Heat Surge 1 | . . . . . . . . . . . . . . . . . . . . . . . . . . . . . . . 1 . . . . Short Circuit 1 | . . . . . . . . . . . . . . . . . . . . . . . . . . . . . . . 1 . . . . Overflow Damage 1767 | . 26 . 22 3 46 24 33 . . 59 . 43 . . . . . 62 . . . . . . . . . . . 7 516 . 401 460 65 Projectiles 164 | . 14 . . . . . . . . . . . . . . . . 4 . . . . . . . . . . . . 78 . . 3 65 Explosions 612 | . 12 . 22 3 46 24 33 . . 59 . 43 . . . . . 58 . . . . . . . . . . . . . . 68 244 . Melee 991 | . . . . . . . . . . . . . . . . . . . . . . . . . . . . . . 7 438 . 333 213 . Knockbacks 35 | . . 2 . . . . . . . . . . . . . . . . . . . . . . . . . . . 3 . . . 28 2 Impact 3 | . . . . . . . . . . . . . . . . . . . . . . . . . . . . . . 3 . . . . . Kinetic 28 | . . 2 . . . . . . . . . . . . . . . . . . . . . . . . . . . . . . . 24 2 Secondary 4 | . . . . . . . . . . . . . . . . . . . . . . . . . . . . . . . . . . 4 . Self-Inflicted Damage 710 | . 14 32 . 62 110 173 4 . . 44 . . . . . . . 53 . . . 42 . . 44 . . . . . 17 . 49 66 . Shots 26 | . 1 1 . 3 3 5 1 . . 3 . . . . . . . 1 . . . 2 . . 1 . . . . . . . 2 3 . Rammed 9 | . . . . . . . . . . . . . . . . . . . . . . . . . . . . . . . 9 . . . . Targets Rammed 23 | . . . . . . . . . . . . . . . . . . . . . . 2 . 1 1 . . . . 8 10 . 1 . . Kicked 14 | . . . . . . . . . . . . . . . . . . . . . . 2 . 1 1 . . . . 8 1 . 1 . . Crushed . | . . . . . . . . . . . . . . . . . . . . . . . . . . . . . . . . . . . . Highest Temperature 424 | . 271 129 234 238 325 121 147 . 215 334 83 326 180 190 115 . . 364 312 12 373 124 . 1 302 222 170 86 204 349 332 324 424 397 384 Average Temperature 78 | . 94 20 15 54 69 27 17 . 115 56 33 131 64 84 69 . . 77 39 4 95 57 . 1 109 40 60 35 65 86 155 113 91 104 90 Received Heat Transfer 9162 | . 144 63 63 149 675 234 375 . . 727 24 533 55 . . . 365 450 . . 263 305 . 342 347 217 . 129 . 731 505 63 1303 956 144 Effects 30 | . . . . . . . . . . 1 . 9 . . . . . 2 . . 3 . . . 4 . . . . . . . 6 4 1 Shutdowns 3 | . . . . . . . . . . . . 1 . . . . . 1 . . 1 . . . . . . . . . . . . . . Energy Bleed 9 | . . . . . . . . . . . . 2 . . . . . 1 . . 2 . . . 1 . . . . . . . 2 . 1 Interference 15 | . . . . . . . . . . 1 . 6 . . . . . . . . . . . . 2 . . . . . . . 3 3 . Matter Decay 1 | . . . . . . . . . . . . . . . . . . . . . . . . . . . . . . . . . 1 . . Short Circuit 1 | . . . . . . . . . . . . . . . . . . . . . . . . . 1 . . . . . . . . . . Damage (minor) 1 | . . . . . . . . . . . . . . . . . . . . . . . . . . . . . . . . . . 1 . Siege Activations 6 | . . . . . . . . . . . . . . . . . . . . . 4 . . . . 1 . . . . . . . . 1 Total Turns 70 | . . . . . . . . . . . . . . . . . . . . . 17 . . . . 27 . . . . . . . . 26 Longest Duration 27 | . . . . . . . . . . . . . . . . . . . . . 8 . . . . 27 . . . . . . . . 26 Martial Activations . | . . . . . . . . . . . . . . . . . . . . . . . . . . . . . . . . . . . . Shielding Activations 3 | . . . . . . . . . . . . . . . . . . . . . . . . . . . . . . . . . 2 1 . Total Turns 81 | . . . . . . . . . . . . . . . . . . . . . . . . . . . . . . . . . 51 30 . Longest Duration 39 | . . . . . . . . . . . . . . . . . . . . . . . . . . . . . . . . . 39 30 . Robots Disrupted 1 | . . . . . . 1 . . . . . . . . . . . . . . . . . . . . . . . . . . . . . Combat Hostiles 1 | . . . . . . 1 . . . . . . . . . . . . . . . . . . . . . . . . . . . . . Robots Corrupted 4 | . . . . . 2 1 . . . . . . . . . . . . . . . . . . . . . . . 1 . . . . . Combat Hostiles 1 | . . . . . 1 . . . . . . . . . . . . . . . . . . . . . . . . . . . . . . Parts Fried 26 | . . . 5 1 3 10 . . . 2 . . . . . . . . . . . . . . . . . . . 2 . . 3 . . Impact Corruptions 3 | . . . . . . . . . . . . . . . . . . . . . . . . . . . . . . 3 . . . . . Robots Melted 10 | . . . . . . . . . . . . 4 . . . . . 1 . . 1 . . . . . . . . 1 . 2 . . 1 Combat Hostiles 7 | . . . . . . . . . . . . 2 . . . . . 1 . . 1 . . . . . . . . 1 . 1 . . 1 Parts Melted 74 | . . 1 2 8 . . . . . 3 1 7 1 . . . . 5 . . 4 . . . 2 . 2 2 . 19 2 10 1 . 4 Heat Transferred 46345 | . 555 1443 285 1323 1029 425 74 481 74 3973 672 6186 814 74 . . 148 3505 37 185 2974 833 . . 1258 407 481 111 . 8375 3000 3515 2516 1382 210 Parts Sabotaged 2 | . . . . . . . . . . . . . . . . . . . . . . . . . . . . . . . . . 1 1 . Parts Stolen . | . . . . . . . . . . . . . . . . . . . . . . . . . . . . . . . . . . . . Parts Stripped . | . . . . . . . . . . . . . . . . . . . . . . . . . . . . . . . . . . . . Power Chain Reactions 25 | . . . 3 5 8 9 . . . . . . . . . . . . . . . . . . . . . . . . . . . . . Alert | -11 -10 -9 -9 -9 -8 -8 -7 -7 -7 -7 -7 -7 -7 -7 -7 -7 -6 -6 -6 -6 -6 -6 -5 -5 -4 -4 -4 -4 -3 -3 -3 -2 -2 -1 -1 ------- Run | Yrd Mat Mat Sto Gar Mat Gar Fac Was Fac Gar Fac Gar Fac Low Low Zio Pro Fac Was Fac Gar Fac Fac DSF Fac Upp Upp War Pro Res Qua Res Tes Acc Com Maximum Alert Level 5 | . 1 1 2 5 4 5 5 2 1 5 5 5 5 . . . . 3 1 . 5 5 4 3 2 . . . . 4 4 3 5 5 5 Low Security (%) 13 | 100 80 58 24 . . . . . . 1 . . . . . . . 69 91 100 23 . . . . . . . . . . . . . . Level 1 6 | . 19 41 29 7 . . . . 99 1 . . . . . . . 9 8 . 2 . . . 36 . . . . . . 13 2 . . Level 2 15 | . . . 45 16 . . . 99 . . . . . . . . . 20 . . 2 . . . 63 . . . . 24 9 53 46 . . Level 3 17 | . . . . 16 60 14 9 . . 26 . . . . . . . . . . 7 . 71 100 . . . . . 44 77 32 28 . . Level 4 18 | . . . . 44 39 38 80 . . 19 29 5 42 . . . . . . . 7 . 28 . . . . . . 30 13 . 4 26 . Level 5 24 | . . . . 15 . 47 9 . . 50 70 94 57 . . . . . . . 55 19 . . . . . . . . . . 18 36 46 High Security 4 | . . . . . . . . . . . . . . . . . . . . . . 80 . . . . . . . . . . . 37 53 Max Security . | . . . . . . . . . . . . . . . . . . . . . . . . . . . . . . . . . . . . Sterilizations 1 | . . 1 . . . . . . . . . . . . . . . . . . . . . . . . . . . . . . . . . Peak Influence 3702 | 15 274 307 588 1678 1429 2476 1773 619 287 3339 2124 2588 1907 . . . . 701 232 156 2668 2178 1100 752 489 . . . . 1396 1210 828 2334 3702 2884 Initial 2356 | . 3 110 126 348 817 893 1299 619 277 147 1752 1484 1358 . . . . . 229 . 84 1400 1100 752 371 . . . . 763 785 605 461 1399 2356 Average 1140 | 3 89 189 332 1098 1030 1685 1266 508 241 1763 1703 2199 1576 . . . . 181 66 74 1418 1951 1086 742 406 . . . . 924 897 569 962 2203 2537 Influence Increases 32669 | 20 575 501 1052 1420 1285 1633 1150 . 164 3642 804 1244 827 . . . 85 1146 31 250 2734 993 5 15 573 425 55 490 165 2585 1123 977 2569 3333 798 Destroy 0b10 Robot/C 14160 | . 360 300 340 680 660 780 660 . 80 1260 300 680 280 . . . 60 440 . 60 860 300 . . 380 380 40 380 120 1080 440 420 1160 1460 200 Destroy 0b10 Robot/NC 930 | 20 20 10 50 . 80 5 125 . 10 10 30 20 35 . . . . 90 . 40 30 25 . . 20 . 5 . 10 90 40 25 55 65 20 Destroy Leader 2062 | . 74 94 112 20 116 30 184 . 20 50 62 50 74 . . . 10 134 . 26 50 44 . . 84 30 10 . 20 186 48 106 134 254 40 Allied During Kill 2486 | . . . 207 6 4 2 16 . 40 504 147 60 91 . . . . . . 106 767 188 . . . . . 5 . 40 40 139 6 105 13 Successful Hack 413 | . 14 9 24 14 9 7 45 . 4 7 54 . 40 . . . . 35 . 14 7 . 5 . 12 . . . . 30 57 . 26 . . Select Force Hacks 60 | . 30 30 . . . . . . . . . . . . . . . . . . . . . . . . . . . . . . . . . Disable Machine 1470 | . 45 . 30 105 45 30 60 . . 30 . 15 225 . . . . 195 . . 15 30 . . . . . . . 120 120 . 255 60 90 Anti-Garrison Action 4150 | . . . . 450 . 550 . . . 1600 . 300 . . . . . 150 . . 900 . . . . . . . . . . 200 . . . Destroy Structure 2818 | . 2 28 53 130 98 199 60 . 10 136 1 104 37 . . . . 87 31 4 105 70 . . 62 . . . . 154 88 87 678 534 60 Advance Influence 750 | . . . . . . . . . . . . . . . . . . . . . . . . . . . . . . 750 . . . . . Partial Spotted 60 | . . . . . . . . . . . . 15 . . . . . . . . . . . . . . . . . . 15 . . 15 15 Lose Combat Pursuer 2130 | . 30 30 . 15 45 30 . . . 45 . . 45 . . . 15 15 . . . 60 . 15 15 15 . 105 15 135 45 . 255 840 360 Miscellaneous 1180 | . . . 236 . 228 . . . . . 210 . . . . . . . . . . 276 . . . . . . . . 230 . . . . Influence Decreases 29821 | 15 318 464 815 278 1589 531 1857 1372 350 514 2023 776 1528 869 264 754 85 491 686 130 186 1488 1139 383 798 549 249 372 427 1209 1443 1233 1057 1983 1596 Entered New Map 17367 | . 2 152 173 188 861 481 1177 1150 120 64 1587 636 1230 699 194 754 . . 426 . 36 1268 1109 323 336 179 69 164 282 7 611 471 359 933 1326 Time Decay 8667 | 15 306 302 522 . 458 . 620 222 190 . 356 . 278 170 70 . 50 381 240 110 . 50 30 . 422 270 180 156 145 662 542 642 648 490 140 Search Patrol Dispatched 300 | . . . . . . . . . . . . . . . . . . . . . . . . . . . . . . 300 . . . . . Lost Part 1837 | . 10 10 20 70 100 30 60 . . 160 . 60 . . . . 35 110 . . 20 30 . 60 40 100 . 32 . 160 270 40 50 280 90 Lost Ally 1500 | . . . 100 20 20 20 . . 40 290 80 80 20 . . . . . 20 20 130 140 . . . . . 20 . 80 20 80 . 280 40 Purge Threat 150 | . . . . . 150 . . . . . . . . . . . . . . . . . . . . . . . . . . . . . . Squads Dispatched 159 | . 4 1 1 . 5 . 12 . 1 . 8 . 5 . . . . 9 . . . 15 1 1 4 . . . . 11 13 2 19 36 11 Investigation 11 | . 2 1 . . 1 . . . . . . . 1 . . . . 2 . . . . 1 . 1 . . . . . . 1 1 . . Extermination 32 | . . . . . . . 5 . 1 . 1 . 2 . . . . 3 . . . . . . 2 . . . . 6 3 . 6 3 . Reinforcement 33 | . 2 . 1 . . . 5 . . . 1 . 1 . . . . 1 . . . 1 . 1 1 . . . . 3 3 1 6 4 2 Assault 75 | . . . . . 3 . 1 . . . 4 . 1 . . . . 2 . . . 14 . . . . . . . 2 4 . 6 29 9 Garrison 8 | . . . . . 1 . 1 . . . 2 . . . . . . 1 . . . . . . . . . . . . 3 . . . . Intercept . | . . . . . . . . . . . . . . . . . . . . . . . . . . . . . . . . . . . . Searches Triggered 3 | . . . . . . . . . . . . . . . . . . . . . . . . . . . . . . 3 . . . . . Construction Impeded 7 | . . . 1 . . . 2 . . . . . . . . . . . . . . 1 . . . . . . . . . . 1 2 . Haulers Reinforced 5 | . . . . . . . 1 . . . 1 . . . . . . . . . . . . . . . . . . . 1 . 1 1 . Active Scanning Responses . | . . . . . . . . . . . . . . . . . . . . . . . . . . . . . . . . . . . . Cargo Convoy Interrupts 1 | . . . . . . . 1 . . . . . . . . . . . . . . . . . . . . . . . . . . . . Stealth | -11 -10 -9 -9 -9 -8 -8 -7 -7 -7 -7 -7 -7 -7 -7 -7 -7 -6 -6 -6 -6 -6 -6 -5 -5 -4 -4 -4 -4 -3 -3 -3 -2 -2 -1 -1 --------- Run | Yrd Mat Mat Sto Gar Mat Gar Fac Was Fac Gar Fac Gar Fac Low Low Zio Pro Fac Was Fac Gar Fac Fac DSF Fac Upp Upp War Pro Res Qua Res Tes Acc Com Distress Signals 31 | . 1 1 . . 2 . 1 . 1 1 1 . . . . . . 1 . 1 . 1 . . . . . . . 2 . 4 3 7 4 Communications Jammed 36 | . . . . . . . . . . . . . . . . . . . . . . . . . . . . . . 4 20 . . 12 . Distress Signals 33 | . . . . . . . . . . . . . . . . . . . . . . . . . . . . . . 3 20 . . 10 . Times Spotted 1196 | . 30 20 17 36 61 42 44 . 3 66 9 35 17 . . . 15 30 11 4 36 36 . 2 26 20 2 69 11 86 63 54 105 175 71 Peak Tracking Total 29 | . 4 4 4 7 9 4 8 . 2 8 3 6 5 . . . 14 5 5 2 5 18 . 3 6 5 2 13 3 12 18 10 14 29 22 Tactical Retreats 65 | . 2 1 . 1 1 2 . . . 1 . . 1 . . . 1 1 1 . . 3 . 1 1 1 . 3 1 6 2 . 7 20 8 Traps | -11 -10 -9 -9 -9 -8 -8 -7 -7 -7 -7 -7 -7 -7 -7 -7 -7 -6 -6 -6 -6 -6 -6 -5 -5 -4 -4 -4 -4 -3 -3 -3 -2 -2 -1 -1 ------- Run | Yrd Mat Mat Sto Gar Mat Gar Fac Was Fac Gar Fac Gar Fac Low Low Zio Pro Fac Was Fac Gar Fac Fac DSF Fac Upp Upp War Pro Res Qua Res Tes Acc Com Traps Triggered 52 | . 3 2 1 3 2 7 3 . 1 4 5 7 1 . . . . 3 . . . 1 . . 2 . . . . . 4 . . 3 . Indirectly . | . . . . . . . . . . . . . . . . . . . . . . . . . . . . . . . . . . . . Trap Hack Attempts . | . . . . . . . . . . . . . . . . . . . . . . . . . . . . . . . . . . . . Triggered . | . . . . . . . . . . . . . . . . . . . . . . . . . . . . . . . . . . . . Disarmed . | . . . . . . . . . . . . . . . . . . . . . . . . . . . . . . . . . . . . Reprogrammed . | . . . . . . . . . . . . . . . . . . . . . . . . . . . . . . . . . . . . Reused . | . . . . . . . . . . . . . . . . . . . . . . . . . . . . . . . . . . . . Traps Extracted . | . . . . . . . . . . . . . . . . . . . . . . . . . . . . . . . . . . . . Installed . | . . . . . . . . . . . . . . . . . . . . . . . . . . . . . . . . . . . . Triggered . | . . . . . . . . . . . . . . . . . . . . . . . . . . . . . . . . . . . . Machines | -11 -10 -9 -9 -9 -8 -8 -7 -7 -7 -7 -7 -7 -7 -7 -7 -7 -6 -6 -6 -6 -6 -6 -5 -5 -4 -4 -4 -4 -3 -3 -3 -2 -2 -1 -1 ---------- Run | Yrd Mat Mat Sto Gar Mat Gar Fac Was Fac Gar Fac Gar Fac Low Low Zio Pro Fac Was Fac Gar Fac Fac DSF Fac Upp Upp War Pro Res Qua Res Tes Acc Com Machines Disabled 134 | . 3 . 2 15 3 10 4 . . 8 . 5 15 . . . . 14 . . 6 2 . . . 1 . 2 . 8 8 . 18 4 6 Max in Single Turn 5 | . 1 . 1 2 1 2 1 . . 2 . 1 1 . . . . 5 . . 1 1 . . . 1 . 1 . 1 1 . 1 1 1 Garrison Access 7 | . . . . . . . 1 . . . 1 . . . . . . 1 . . . . . . 1 . . . . . . 2 . 1 . Garrison Relay 26 | . . . . 6 . 6 . . . 6 . 4 . . . . . . . . 4 . . . . . . . . . . . . . . Phase Generator 2 | . . . . 1 . 1 . . . . . . . . . . . . . . . . . . . . . . . . . . . . . Energy Cycler 1 | . . . . . . . . . . . . . . . . . . . . . . . . . . . . . . . . . . 1 . Machines Repaired . | . . . . . . . . . . . . . . . . . . . . . . . . . . . . . . . . . . . . Machines Dismantled . | . . . . . . . . . . . . . . . . . . . . . . . . . . . . . . . . . . . . Machines Sabotaged . | . . . . . . . . . . . . . . . . . . . . . . . . . . . . . . . . . . . . Overloaded Fab Kills . | . . . . . . . . . . . . . . . . . . . . . . . . . . . . . . . . . . . . Hacking | -11 -10 -9 -9 -9 -8 -8 -7 -7 -7 -7 -7 -7 -7 -7 -7 -7 -6 -6 -6 -6 -6 -6 -5 -5 -4 -4 -4 -4 -3 -3 -3 -2 -2 -1 -1 --------- Run | Yrd Mat Mat Sto Gar Mat Gar Fac Was Fac Gar Fac Gar Fac Low Low Zio Pro Fac Was Fac Gar Fac Fac DSF Fac Upp Upp War Pro Res Qua Res Tes Acc Com Machines Accessed 103 | . 4 6 9 3 8 1 9 . 2 3 10 1 4 . . . 1 7 . 1 1 . 2 . 5 2 1 1 . 7 5 1 6 2 1 Terminals 62 | . 3 5 6 3 6 1 4 . 1 3 6 1 3 . . . 1 3 . . 1 . 1 . 2 . . . . 5 3 . 4 . . Fabricators 6 | . . . . . . . 1 . . . 1 . 1 . . . . 1 . . . . . . . . . . . 1 . . . 1 . Repair Stations 10 | . . . 2 . . . 1 . . . . . . . . . . 2 . . . . 1 . 1 . . . . . 1 . 1 . 1 Recycling Units 3 | . 1 1 . . . . 1 . . . . . . . . . . . . . . . . . . . . . . . . . . . . Scanalyzers 6 | . . . . . 1 . 1 . . . 1 . . . . . . . . . . . . . 1 . . . . . 1 . 1 . . Garrison Access 12 | . . . 1 . 1 . 1 . 1 . 2 . . . . . . 1 . 1 . . . . 1 . . . . 1 . 1 . 1 . Total Hacks 210 | . 8 16 18 4 22 2 24 . 2 3 24 3 9 . . . 1 14 . 1 2 . 2 . 8 8 1 1 . 12 9 3 10 2 1 Successful 97 | . 5 7 10 1 5 1 14 . 1 1 10 . 4 . . . 1 6 . 1 1 . 2 . 5 8 1 1 . 2 4 1 4 1 . Failed 112 | . 3 9 8 3 16 1 10 . 1 2 14 3 5 . . . . 8 . . 1 . . . 3 . . . . 10 5 2 6 1 1 Catastrophic 27 | . 1 4 . 1 2 . 2 . 1 2 2 1 1 . . . . . . . . . . . 1 . . . . 3 2 . 2 1 1 Database Lockouts 1 | . . . . . 1 . . . . . . . . . . . . . . . . . . . . . . . . . . . . . . Manual 81 | . 8 9 6 . 5 . 12 . 1 . 8 . 3 . . . . 7 . . . . 1 . 3 . . . . 6 2 2 6 . 2 Terminals 136 | . 7 14 13 4 18 2 15 . 1 3 15 3 7 . . . 1 5 . . 2 . 1 . 4 . . . . 9 5 . 7 . . Fabricators 12 | . . . . . . . 3 . . . 2 . 2 . . . . 2 . . . . . . . . . . . 2 . . . 1 . Repair Stations 18 | . . . 4 . . . 1 . . . . . . . . . . 5 . . . . 1 . 1 . . . . . 3 . 2 . 1 Recycling Units 4 | . 1 2 . . . . 1 . . . . . . . . . . . . . . . . . . . . . . . . . . . . Scanalyzers 11 | . . . . . 2 . 2 . . . 3 . . . . . . . . . . . . . 2 . . . . . 1 . 1 . . Garrison Access 19 | . . . 1 . 2 . 2 . 1 . 4 . . . . . . 2 . 1 . . . . 1 . . . . 1 . 3 . 1 . Terminal Hacks 43 | . 2 2 5 1 2 1 5 . . 1 5 . 3 . . . 1 . . . 1 . 1 . . 8 1 1 . . 2 . 1 . . Record 7 | . . . . . . . . . . . . . . . . . . . . . . . . . . 7 . . . . . . . . . Part Schematic 1 | . . . . . . . 1 . . . . . . . . . . . . . . . . . . . . . . . . . . . . Robot Analysis 2 | . 1 . . . 1 . . . . . . . . . . . . . . . . . . . . . . . . . . . . . . Prototype ID Bank 9 | . 1 1 2 . . . 1 . . . 2 . 2 . . . . . . . . . . . . . . . . . . . . . . Open Door 10 | . . . 3 . . 1 . . . 1 . . . . . . 1 . . . 1 . . . . 1 1 1 . . . . . . . Open DSF 1 | . . . . . . . . . . . . . . . . . . . . . . . 1 . . . . . . . . . . . . Branch Access Points 3 | . . 1 . . . . . . . . 1 . 1 . . . . . . . . . . . . . . . . . . . . . . Alert Level 3 | . . . . . . . 2 . . . 1 . . . . . . . . . . . . . . . . . . . . . . . . Unreport Threat 1 | . . . . . 1 . . . . . . . . . . . . . . . . . . . . . . . . . . . . . . Locate Traps 1 | . . . . . . . 1 . . . . . . . . . . . . . . . . . . . . . . . . . . . . Zone Layout 3 | . . . . . . . . . . . 1 . . . . . . . . . . . . . . . . . . . 2 . . . . Patrol Navigation 1 | . . . . 1 . . . . . . . . . . . . . . . . . . . . . . . . . . . . . . . Protovariant Controls 1 | . . . . . . . . . . . . . . . . . . . . . . . . . . . . . . . . . 1 . . Fabricator Hacks 1 | . . . . . . . 1 . . . . . . . . . . . . . . . . . . . . . . . . . . . . Network Status 1 | . . . . . . . 1 . . . . . . . . . . . . . . . . . . . . . . . . . . . . Repair Station Hacks 9 | . . . 2 . . . 1 . . . . . . . . . . 3 . . . . . . 1 . . . . . 2 . . . . Scan Component 6 | . . . 1 . . . 1 . . . . . . . . . . 2 . . . . . . 1 . . . . . 1 . . . . Repair 3 | . . . 1 . . . . . . . . . . . . . . 1 . . . . . . . . . . . . 1 . . . . Recycling Unit Hacks 2 | . . 1 . . . . 1 . . . . . . . . . . . . . . . . . . . . . . . . . . . . Retrieve Components 2 | . . 1 . . . . 1 . . . . . . . . . . . . . . . . . . . . . . . . . . . . Scanalyzer 6 | . . . . . . . 2 . . . 1 . . . . . . . . . . . . . 2 . . . . . . . 1 . . Retrieve Study 6 | . . . . . . . 2 . . . 1 . . . . . . . . . . . . . 2 . . . . . . . 1 . . Garrison Access Hacks 9 | . . . 1 . 1 . 1 . 1 . 2 . . . . . . . . 1 . . . . 1 . . . . . . . . 1 . Unlock Access 5 | . . . 1 . 1 . . . 1 . 1 . . . . . . . . 1 . . . . . . . . . . . . . . . Seal Access 4 | . . . . . . . 1 . . . 1 . . . . . . . . . . . . . 1 . . . . . . . . 1 . Unauthorized Hacks 27 | . 3 4 2 . 2 . 3 . . . 2 . 1 . . . . 3 . . . . 1 . 1 . . . . 2 . 1 2 . . Terminals 19 | . 2 3 2 . 2 . 2 . . . 2 . 1 . . . . 1 . . . . . . 1 . . . . 2 . . 1 . . Assimilate 1 | . . . . . . . . . . . . . . . . . . . . . . . . . . . . . . 1 . . . . . Botnet 18 | . 2 3 2 . 2 . 2 . . . 2 . 1 . . . . 1 . . . . . . 1 . . . . 1 . . 1 . . Fabricators 2 | . . . . . . . 1 . . . . . . . . . . 1 . . . . . . . . . . . . . . . . . Haulers 2 | . . . . . . . 1 . . . . . . . . . . 1 . . . . . . . . . . . . . . . . . Repair Stations 3 | . . . . . . . . . . . . . . . . . . 1 . . . . 1 . . . . . . . . . 1 . . Patch 3 | . . . . . . . . . . . . . . . . . . 1 . . . . 1 . . . . . . . . . 1 . . Recycling Units 2 | . 1 1 . . . . . . . . . . . . . . . . . . . . . . . . . . . . . . . . . Tunnel 2 | . 1 1 . . . . . . . . . . . . . . . . . . . . . . . . . . . . . . . . . Scanalyzers . | . . . . . . . . . . . . . . . . . . . . . . . . . . . . . . . . . . . . Garrison Access 1 | . . . . . . . . . . . . . . . . . . . . . . . . . . . . . . . . 1 . . . Jam 1 | . . . . . . . . . . . . . . . . . . . . . . . . . . . . . . . . 1 . . . Data Cores Recovered . | . . . . . . . . . . . . . . . . . . . . . . . . . . . . . . . . . . . . Used . | . . . . . . . . . . . . . . . . . . . . . . . . . . . . . . . . . . . . Hacking Detections 81 | . 3 5 6 2 7 . 7 . 2 3 9 1 4 . . . . 6 . 1 . . . . 4 . . . . 7 5 1 4 1 3 Full Trace Events 4 | . . 2 . . . . . . . . . . . . . . . 1 . . . . . . 1 . . . . . . . . . . Feedback Events . | . . . . . . . . . . . . . . . . . . . . . . . . . . . . . . . . . . . . Feedback Blocked . | . . . . . . . . . . . . . . . . . . . . . . . . . . . . . . . . . . . . Robot Schematics Acquired 3 | . . . . . . . . . . . . . . . . 3 . . . . . . . . . . . . . . . . . . . Robots Built . | . . . . . . . . . . . . . . . . . . . . . . . . . . . . . . . . . . . . Authchips . | . . . . . . . . . . . . . . . . . . . . . . . . . . . . . . . . . . . . Time . | . . . . . . . . . . . . . . . . . . . . . . . . . . . . . . . . . . . . Total Robot Build Rating . | . . . . . . . . . . . . . . . . . . . . . . . . . . . . . . . . . . . . Part Schematics Acquired 21 | . . . . . . . 1 . . . . . . . . 15 . . . . . . . . . . . . . . . . 5 . . Parts Built . | . . . . . . . . . . . . . . . . . . . . . . . . . . . . . . . . . . . . Authchips . | . . . . . . . . . . . . . . . . . . . . . . . . . . . . . . . . . . . . Time . | . . . . . . . . . . . . . . . . . . . . . . . . . . . . . . . . . . . . Total Part Build Rating . | . . . . . . . . . . . . . . . . . . . . . . . . . . . . . . . . . . . . Part Studies Acquired 6 | . . . . . . . 2 . . . 1 . . . . . . . . . . . . . 2 . . . . . . . 1 . . Parts Repaired 3 | . . . 1 . . . . . . . . . . . . . . 1 . . . . . . . . . . . . 1 . . . . Time 161 | . . . 51 . . . . . . . . . . . . . . 56 . . . . . . . . . . . . 54 . . . . Parts Recycled . | . . . . . . . . . . . . . . . . . . . . . . . . . . . . . . . . . . . . Recycled Matter . | . . . . . . . . . . . . . . . . . . . . . . . . . . . . . . . . . . . . Retrieved Matter . | . . . . . . . . . . . . . . . . . . . . . . . . . . . . . . . . . . . . Retrieved Components 10 | . . 1 . . . . 9 . . . . . . . . . . . . . . . . . . . . . . . . . . . . Parts Scanalyzed . | . . . . . . . . . . . . . . . . . . . . . . . . . . . . . . . . . . . . Part Schematics Acquired . | . . . . . . . . . . . . . . . . . . . . . . . . . . . . . . . . . . . . Parts Damaged . | . . . . . . . . . . . . . . . . . . . . . . . . . . . . . . . . . . . . Bothacking | -11 -10 -9 -9 -9 -8 -8 -7 -7 -7 -7 -7 -7 -7 -7 -7 -7 -6 -6 -6 -6 -6 -6 -5 -5 -4 -4 -4 -4 -3 -3 -3 -2 -2 -1 -1 ------------ Run | Yrd Mat Mat Sto Gar Mat Gar Fac Was Fac Gar Fac Gar Fac Low Low Zio Pro Fac Was Fac Gar Fac Fac DSF Fac Upp Upp War Pro Res Qua Res Tes Acc Com Used RIF Installer . | . . . . . . . . . . . . . . . . . . . . . . . . . . . . . . . . . . . . Robots Hacked 1 | . . . . . . . 1 . . . . . . . . . . . . . . . . . . . . . . . . . . . . Non-combat 1 | . . . . . . . 1 . . . . . . . . . . . . . . . . . . . . . . . . . . . . Combat . | . . . . . . . . . . . . . . . . . . . . . . . . . . . . . . . . . . . . Robot Hacks Applied 1 | . . . . . . . 1 . . . . . . . . . . . . . . . . . . . . . . . . . . . . find_chute 1 | . . . . . . . 1 . . . . . . . . . . . . . . . . . . . . . . . . . . . . Relay Couplers Released 106 | . . . . 23 . 25 3 . . 21 . 16 . . . . . . . . 16 . . . . . . . . . . 2 . . . Machine Destruction 103 | . . . . 23 . 25 . . . 21 . 16 . . . . . . . . 16 . . . . . . . . . . 2 . . . Programmers 3 | . . . . . . . 3 . . . . . . . . . . . . . . . . . . . . . . . . . . . . Fabnet Peak Effective % . | . . . . . . . . . . . . . . . . . . . . . . . . . . . . . . . . . . . . Robots Rewired 12 | . . . . . . . . . . 9 . . . . . . . . . . 2 . . . . . . 1 . . . . . . . Allies Hacked . | . . . . . . . . . . . . . . . . . . . . . . . . . . . . . . . . . . . . Hacks Repelled . | . . . . . . . . . . . . . . . . . . . . . . . . . . . . . . . . . . . . Allies | -11 -10 -9 -9 -9 -8 -8 -7 -7 -7 -7 -7 -7 -7 -7 -7 -7 -6 -6 -6 -6 -6 -6 -5 -5 -4 -4 -4 -4 -3 -3 -3 -2 -2 -1 -1 -------- Run | Yrd Mat Mat Sto Gar Mat Gar Fac Was Fac Gar Fac Gar Fac Low Low Zio Pro Fac Was Fac Gar Fac Fac DSF Fac Upp Upp War Pro Res Qua Res Tes Acc Com Total Allies 109 | . . . 10 . 2 1 1 20 3 16 . 2 . . . . . . 20 . 4 . . . . . . 1 . 4 3 4 1 15 2 Largest Group 20 | . . . 10 2 2 1 1 20 18 14 9 5 2 . . . . . 19 17 16 8 . . . . . 1 . 3 3 4 1 6 2 Highest-Rated Group 782 | . . . 88 16 10 31 142 483 411 348 312 175 175 . . . . . 782 622 597 335 . . . . . 89 . 126 159 356 82 464 192 Highest-Rated Ally 148 | . . . 16 8 5 31 142 35 31 40 40 95 95 . . . . . 141 50 62 54 . . . . . 89 . 42 75 89 82 148 96 Initial Warlord ECA Mod 45 | . . . . . 10 10 20 20 20 20 30 30 38 38 38 38 37 37 37 37 37 45 44 44 43 43 43 43 42 42 42 41 41 40 40 Total Orders . | . . . . . . . . . . . . . . . . . . . . . . . . . . . . . . . . . . . . Ally Attacks 775 | . . . 66 14 14 2 18 . 18 151 41 11 42 . . . . . 35 34 146 34 . . . . . 6 . 3 10 30 4 74 22 Total Damage 22186 | . . . 534 126 51 21 844 . 287 3581 1211 234 1233 . . . . . 1992 450 4222 1338 . . . . . 220 . 101 466 802 17 2336 2120 Kills 155 | . . . 8 1 1 . 5 . 4 23 16 4 12 . . . . . 6 7 27 10 . . . . . 1 . 1 5 7 . 11 6 Allies Corrupted 4 | . . . . . . . . . . . . . . . . . . . . . . . . . . . . 1 . 1 . 1 . . 1 Allies Melted 4 | . . . . . . 1 . . . . . . . . . . . . . . . . . . . . . . . . . 1 1 . 1 X0-1V1 Amusement Gains 540 | . 5 91 10 35 8 . . . . 2 28 . . . . . . 20 . . 10 71 5 . 5 . . 40 10 . 45 40 53 31 31 Good Acts 283 | . 9 4 8 9 13 12 18 2 3 18 1 7 9 . . . 3 6 2 . 2 2 . . 6 5 2 3 3 19 20 15 22 41 19 Bad Acts 165 | . 6 1 1 6 5 1 3 2 2 7 6 7 . 3 1 . 3 8 5 1 15 3 . . 4 5 . 5 4 15 7 7 17 9 6 Intel | -11 -10 -9 -9 -9 -8 -8 -7 -7 -7 -7 -7 -7 -7 -7 -7 -7 -6 -6 -6 -6 -6 -6 -5 -5 -4 -4 -4 -4 -3 -3 -3 -2 -2 -1 -1 ------- Run | Yrd Mat Mat Sto Gar Mat Gar Fac Was Fac Gar Fac Gar Fac Low Low Zio Pro Fac Was Fac Gar Fac Fac DSF Fac Upp Upp War Pro Res Qua Res Tes Acc Com Active Infowar (turns) 13686 | 15 58 . . . . . . . . . . . . . . . . 720 901 75 453 194 65 46 641 265 354 581 175 2515 1538 1588 2115 1387 . Optics 5159 | . . . . . . . . . . . . . . . . . . . . . . . . . . . . . 175 2515 1538 931 . . . Sensors 8686 | . . . . . . . . . . . . . . . . . . 720 901 75 453 194 . . . . . . . 1828 805 862 1785 1063 . Terrain 2162 | . . . . . . . . . . . . . . . . . . . . . . . 65 . 641 265 354 581 . . 256 . . . . Traps 47 | . . . . . . . . . . . . . . . . . . . . . . . . 46 . . . . . 1 . . . . . Seismic 73 | 15 58 . . . . . . . . . . . . . . . . . . . . . . . . . . . . . . . . . . Jamming 5530 | . . . . . . . . . . . . . . . . . . . . . . . . . . . . . . 1441 1008 370 1565 1146 . Robot Analysis Total 2 | . 1 . . . 1 . . . . . . . . . . . . . . . . . . . . . . . . . . . . . . Derelict Logs Recovered 3 | . . . . . . . . . . . . . . 1 1 1 . . . . . . . . . . . . . . . . . . . Drone Launches . | . . . . . . . . . . . . . . . . . . . . . . . . . . . . . . . . . . . . Drone Recoveries . | . . . . . . . . . . . . . . . . . . . . . . . . . . . . . . . . . . . . Exploration | -11 -10 -9 -9 -9 -8 -8 -7 -7 -7 -7 -7 -7 -7 -7 -7 -7 -6 -6 -6 -6 -6 -6 -5 -5 -4 -4 -4 -4 -3 -3 -3 -2 -2 -1 -1 ------------- Run | Yrd Mat Mat Sto Gar Mat Gar Fac Was Fac Gar Fac Gar Fac Low Low Zio Pro Fac Was Fac Gar Fac Fac DSF Fac Upp Upp War Pro Res Qua Res Tes Acc Com Turns Passed 41433 | 95 1042 678 1459 1786 1159 1810 2088 461 398 3664 806 1690 618 352 149 848 285 1877 901 300 2714 569 69 54 1039 599 366 1238 808 2515 1543 2301 2366 2084 702 Spaces Moved 24064 | 57 500 370 816 1114 618 1096 1264 278 290 1289 387 897 515 312 149 839 244 888 403 188 1473 360 49 37 599 345 257 793 477 1463 823 1549 1361 1173 791 Core 977 | 3 . . . . . . . . . . . . . . . . . . . . . . . . . . . . . . 74 63 . 82 755 Treads 2111 | 3 . . 67 1 . . . . . 979 197 23 . . . . . . . . 837 . . . . . . . . . . . . . 4 Legs 11157 | . . . . . . . . . . . . . . . . . . 888 403 188 636 360 49 37 599 345 257 793 477 1463 729 1460 1361 1091 21 Wheels 9773 | 51 500 370 749 1113 618 1096 1264 278 290 310 190 874 515 312 149 839 244 . . . . . . . . . . . . . . . . . 11 Hover 46 | . . . . . . . . . . . . . . . . . . . . . . . . . . . . . . . 20 26 . . . Flight . | . . . . . . . . . . . . . . . . . . . . . . . . . . . . . . . . . . . . Fastest Speed 50 | 50 100 145 145 110 110 130 120 130 123 123 110 110 100 100 100 100 100 130 133 133 130 130 130 130 115 115 121 118 118 114 50 50 104 50 50 Average Speed 130 | 100 140 145 152 126 132 131 130 130 127 241 192 123 101 100 100 100 105 158 133 133 147 130 130 130 120 119 121 120 122 117 121 118 109 110 53 Slowest Speed 320 | 160 145 145 240 240 160 160 175 130 130 320 320 280 120 100 100 100 170 250 133 133 250 130 130 130 229 121 121 182 200 120 260 250 116 190 250 Overloaded Moves . | . . . . . . . . . . . . . . . . . . . . . . . . . . . . . . . . . . . . Propulsion Burnouts . | . . . . . . . . . . . . . . . . . . . . . . . . . . . . . . . . . . . . Robots Hopped . | . . . . . . . . . . . . . . . . . . . . . . . . . . . . . . . . . . . . Potential Cave-ins 29 | . . . . . . . . . . . . . . 2 . . . 3 4 . . . . . . . . . . 3 . . 3 14 . Cave-ins Triggered 2 | . . . . . . . . . . . . . . . . . . . . . . . . . . . . . . . . . . 2 . Teleports 1 | . . . . . . . . . . . . . . . . . . . . . . . . . . . . . . . 1 . . . . Exploration Rate (%) 51 | 3 73 48 92 96 61 87 35 95 9 88 13 69 18 51 39 80 38 23 97 8 87 14 2 44 19 50 40 87 65 48 49 60 95 30 35 Regions Visited 35 Branch Regions 12 Pre-discovered Areas 6 | . 1 1 . . . . . . . . . . . 1 . 2 . . . . . . . . . 1 . . . . . . . . . Known Exits Taken 17 | . . 1 1 . 1 . . . 1 . 1 . 1 . . . 1 . . 1 . 1 1 . . 1 . 1 . 1 1 1 1 1 . Unknown Exits Taken 8 | 1 1 . . . . . . . . . . . . 1 1 1 . . . . . . . . 1 . 1 . 1 . . . . . . Scrap Searched 15 | . . . . . . . . . . . . . . 6 2 2 . . . . . . . . . 1 . . 4 . . . . . . Spaces Dug 302 | . . . 26 . 14 . 5 . 10 48 . 35 7 2 . . . 10 46 . . 14 . . 3 1 1 . 2 19 9 . 33 16 1 Terrain Destroyed 1776 | . . 25 54 87 104 130 55 . 10 102 . 68 23 7 . . 26 99 60 2 2 87 . . 48 16 7 21 22 72 55 40 258 284 12 Melee 28 | . . . . . . . . . . . . . . . . . . . . . . . . . . . . . . . 6 . 14 7 1 Projectile 512 | . . 1 . . 14 . 1 . . 1 . . . 7 . . . 10 17 2 2 . . . 33 14 7 21 22 72 49 39 121 68 11 AOE 1233 | . . 24 54 87 90 130 54 . 10 101 . 68 23 . . . 26 89 43 . . 87 . . 15 . . . . . . . 123 209 . Terrain Rammed . | . . . . . . . . . . . . . . . . . . . . . . . . . . . . . . . . . . . . Walls Destroyed . | . . . . . . . . . . . . . . . . . . . . . . . . . . . . . . . . . . . . Machines Disabled . | . . . . . . . . . . . . . . . . . . . . . . . . . . . . . . . . . . . . Actions | -11 -10 -9 -9 -9 -8 -8 -7 -7 -7 -7 -7 -7 -7 -7 -7 -7 -6 -6 -6 -6 -6 -6 -5 -5 -4 -4 -4 -4 -3 -3 -3 -2 -2 -1 -1 --------- Run | Yrd Mat Mat Sto Gar Mat Gar Fac Was Fac Gar Fac Gar Fac Low Low Zio Pro Fac Was Fac Gar Fac Fac DSF Fac Upp Upp War Pro Res Qua Res Tes Acc Com Total 30353 | 76 719 449 975 1309 808 1278 1517 352 314 1619 434 1211 572 339 148 846 259 1195 745 221 1948 411 55 42 818 455 288 958 643 1899 1140 1893 1824 1597 996 Wait 1799 | . 131 15 59 21 14 21 56 47 10 8 1 60 10 5 . . . 132 293 11 252 5 . . 46 20 . 57 110 99 43 96 73 48 56 Move 24035 | 56 499 369 816 1113 618 1095 1264 277 290 1288 387 896 514 311 148 838 243 888 402 188 1472 360 48 36 598 344 256 792 476 1462 822 1548 1360 1171 790 Hop . | . . . . . . . . . . . . . . . . . . . . . . . . . . . . . . . . . . . . Pick Up 323 | 3 8 15 24 1 21 7 22 4 2 10 5 6 4 1 . . . 13 7 3 30 1 . 1 13 2 3 10 5 24 9 26 18 19 6 Fast Attach 300 | 7 8 2 1 3 3 2 8 1 1 14 3 7 2 4 . 3 4 16 3 1 23 2 1 . 18 1 3 8 3 18 38 41 19 17 15 Attach 299 | . 2 4 5 13 15 3 11 1 1 14 1 10 2 1 . . 2 18 3 . 18 1 4 1 11 11 . 5 6 28 17 18 17 32 24 Detach 260 | 1 2 3 1 7 5 3 7 . . 9 1 8 2 . . 2 2 12 5 1 30 1 1 1 10 2 2 8 3 16 14 30 17 26 28 Swap 612 | . 6 5 15 21 32 16 23 1 5 35 8 30 12 6 . 1 2 22 7 7 7 8 . 2 34 13 6 17 8 54 30 42 81 55 1 Drop 415 | 1 6 6 22 3 16 9 23 6 2 18 10 8 5 3 . 1 . 8 4 3 49 3 1 . 21 3 1 8 4 30 22 47 39 24 9 Fire 1917 | 8 57 30 32 107 84 89 103 15 3 114 8 136 21 8 . 1 6 86 21 7 53 29 . . 66 47 17 51 28 160 91 45 164 165 65 Melee 84 | . . . . . . . . . . . . . . . . . . . . . . . . . . . . . . . 29 . 35 19 1 Ram 7 | . . . . . . . . . . . . . . . . . . . . . . . . . . . . . . . 7 . . . . Kick 13 | . . . . . . . . . . . . . . . . . . . . . . 1 . 1 1 . . . . 8 1 . 1 . . Crush 2 | . . . . . . . . . . . . . . . . . . . . . . . . . . . . . . . 2 . . . . Escape Stasis 124 | . . . . 18 . 32 . . . 8 10 50 . . . . . . . . 5 . . . . . . . . . . . . 1 . Rewire 117 | . . . . 2 . 1 . . . 101 . . . . . . . . . . 9 . . . . . . 2 . . 1 . . . 1 Trap . | . . . . . . . . . . . . . . . . . . . . . . . . . . . . . . . . . . . . Miscellaneous 46 | . . . . . . . . . . . . . . . . . . . . . . . . . . 12 . . . . 14 . . 20 . Route ------- -11/Scrapyard -10/Materials (discovered 5 exits: *Mat x2 / *Min x2 / [*Sub]) -9/Materials (discovered 4 exits: *Mat / *Min / *Sto x2) -9/Storage (discovered 3 exits: *Mat / Rec / Gar) -9/Garrison (discovered 3 exits: *Mat x3) -8/Materials -8/Garrison (discovered 3 exits: *Fac x3) -7/Factory (discovered 3 exits: Fac / *Low x2) -7/Waste -7/Factory -7/Garrison (discovered 3 exits: *Fac x3) -7/Factory (discovered 3 exits: Low x2 / Gar) -7/Garrison (discovered 4 exits: *Fac x4) -7/Factory (discovered 3 exits: *Fac / *Low x2) -7/Lower Caves -7/Lower Caves -7/Zion -6/Proximity Caves -6/Factory (discovered 3 exits: *Fac / Low / [*Ext]) -6/Waste -6/Factory (discovered 2 exits: *Low / Gar) -6/Garrison (discovered 3 exits: *Fac x3) -6/Factory -5/Factory (discovered 3 exits: Upp x2 / DSF) -5/DSF -4/Factory -4/Upper Caves -4/Upper Caves -4/Warlord -3/Proximity Caves -3/Research (discovered 5 exits: *Res x3 / Arm / *Qua) -3/Quarantine (discovered 2 exits: *Res / Frg) -2/Research (discovered 4 exits: *Acc x3 / *Tes) -2/Testing -1/Access -1/Command To Epsilon Eridani History --------- Turn | Location | Event 19 | -11/Scrapyard | Discovered new exit (range 14) 96 | -11/Scrapyard | Entered Materials 194 | -10/Materials | Discovered new exit (range 16) 309 | -10/Materials | Build established: Mutant 314 | -10/Materials | Discovered new exit (range 14) 448 | -10/Materials | Discovered new exit (range 10) 471 | -10/Materials | Made a sacrifice at D.C.S.S. Altar Unit 473 | -10/Materials | Energy capacity permanently improved by X0-1V1 (+200; -100 max core) 562 | -10/Materials | Weapon slot count temporarily expanded by X0-1V1 (+1) 648 | -10/Materials | X0-1V1 mutated your Propulsion slot to Weapon slot 721 | -10/Materials | Identified exit to Mines 721 | -10/Materials | X0-1V1 revealed exit location to -10/Mines 722 | -10/Materials | Discovered new exit (range 13) 794 | -10/Materials | X0-1V1 announced a LAN party 796 | -10/Materials | X0-1V1 activates XOMVISION 905 | -10/Materials | Core integrity fell below 50% 1030 | -10/Materials | Build established: Gunner 1075 | -10/Materials | Core integrity fell below 20% 1138 | -10/Materials | Entered another Materials area 1138 | -9/Materials | Evolved 2 slots: Propulsion x1, Utility x1 1139 | -9/Materials | X0-1V1 released a cloud of subatomizers 1317 | -9/Materials | X0-1V1 sent you into danger 1518 | -9/Materials | Discovered new exit (range 19) 1604 | -9/Materials | Sterilization system engaged 1604 | -9/Materials | Non-combat units ordered to evacuate 1690 | -9/Materials | Identified exit to Mines 1690 | -9/Materials | Identified exit to Storage 1704 | -9/Materials | Combat units ordered to evacuate 1786 | -9/Materials | X0-1V1 foreshadows a heat wave 1816 | -9/Materials | Entered Storage 1960 | -9/Storage | Assisted by bots powering up and referring to "LRC-V3" 2049 | -9/Storage | Inventory capacity permanently improved by X0-1V1 (+1; -100 max core) 2270 | -9/Storage | Build established: Commander-Gunner 2355 | -9/Storage | Identified exit to Materials 2355 | -9/Storage | X0-1V1 revealed exit location to -8/Materials 2407 | -9/Storage | Met 01-MTF 2459 | -9/Storage | Lost 4 allies 3133 | -9/Storage | Core integrity permanently improved by X0-1V1 (+250) 3169 | -9/Storage | Repaired Imp. EM Shotgun 3199 | -9/Storage | X0-1V1 added 0b10 threat records associated with you (major) 3218 | -9/Storage | Identified exit to Recycling 3218 | -9/Storage | X0-1V1 revealed exit location to -9/Recycling 3275 | -9/Storage | Identified exit to Garrison 3275 | -9/Storage | Entered Garrison 3275 | -9/Garrison | Accompanied by 3 allies (01-MTF) 3278 | -9/Garrison | 01-MTF left 3335 | -9/Garrison | Triggered checkpoint 3341 | -9/Garrison | Garrison Relay disabled 3407 | -9/Garrison | Triggered checkpoint 3417 | -9/Garrison | Triggered checkpoint 3425 | -9/Garrison | Weapon slot count temporarily expanded by X0-1V1 (+3) 3493 | -9/Garrison | X0-1V1 sent hostile G-34 Mercenary (x4) 3527 | -9/Garrison | Triggered checkpoint 3588 | -9/Garrison | Garrison Relay disabled 3771 | -9/Garrison | Discovered exit to Materials (range 5) 3842 | -9/Garrison | Triggered checkpoint 3872 | -9/Garrison | X0-1V1 vaporized surrounding terrain (radius 17) 3912 | -9/Garrison | Destroyed 7 combat bots 3916 | -9/Garrison | Garrison Relay disabled 3934 | -9/Garrison | Triggered checkpoint 4049 | -9/Garrison | Phase Generator disabled 4073 | -9/Garrison | X0-1V1 revealed exit location to -8/Materials 4089 | -9/Garrison | Build established: Gunner 4117 | -9/Garrison | Discovered exit to Materials (range 3) 4209 | -9/Garrison | Lost 3 parts (2n1u) 4254 | -9/Garrison | X0-1V1 mutated your Weapon slot to Propulsion slot 4545 | -9/Garrison | Triggered checkpoint 4556 | -9/Garrison | Build established: Mutant 4594 | -9/Garrison | Garrison Relay disabled 4625 | -9/Garrison | X0-1V1 whisked you away to safety 4691 | -9/Garrison | X0-1V1 activates XOMVISION 4738 | -9/Garrison | Garrison Relay disabled 4788 | -9/Garrison | Core integrity restored by X0-1V1 (+112) 4789 | -9/Garrison | Garrison Relay disabled 5061 | -9/Garrison | Entered Materials 5061 | -8/Materials | Evolved 2 slots: Utility x1, Weapon x1 5192 | -8/Materials | X0-1V1 sent you to a vault 5461 | -8/Materials | First assault squad dispatched 5515 | -8/Materials | Build established: Tank 5569 | -8/Materials | Lost 5 parts (1n1u3w) 5610 | -8/Materials | X0-1V1 activates XOMVISION 5652 | -8/Materials | Central database locked down 5658 | -8/Materials | X0-1V1 added 0b10 threat records associated with you (considerable) 5818 | -8/Materials | X0-1V1 sent hostile S-10 Pest (x4) 5837 | -8/Materials | Garrison activated, responded to threat 5919 | -8/Materials | X0-1V1 whisked you away to safety 5934 | -8/Materials | Destroyed 10 combat bots 5986 | -8/Materials | X0-1V1 mutated your Utility slot to Power slot 6025 | -8/Materials | X0-1V1 sent allied S-10 Pest (x2) 6220 | -8/Materials | Identified exit to Garrison 6220 | -8/Materials | Entered Garrison 6300 | -8/Garrison | Triggered checkpoint 6337 | -8/Garrison | Garrison Relay disabled 6374 | -8/Garrison | X0-1V1 activates XOMVISION 6496 | -8/Garrison | Build established: Gunner 6556 | -8/Garrison | Triggered checkpoint 6557 | -8/Garrison | Triggered checkpoint 6689 | -8/Garrison | Triggered checkpoint 6691 | -8/Garrison | Garrison Relay disabled 6726 | -8/Garrison | Triggered checkpoint 6734 | -8/Garrison | Discovered new exit (range 13) 6778 | -8/Garrison | Identified exit to Factory 6778 | -8/Garrison | X0-1V1 revealed exit location to -7/Factory 7094 | -8/Garrison | Spotted B-75 Beast 7094 | -8/Garrison | Spotted B-75 Beast 7159 | -8/Garrison | Rescued a captive Derelict 7188 | -8/Garrison | Garrison Relay disabled 7246 | -8/Garrison | Triggered checkpoint 7306 | -8/Garrison | Triggered checkpoint 7379 | -8/Garrison | Core integrity restored by X0-1V1 (+132) 7451 | -8/Garrison | Phase Generator disabled 7513 | -8/Garrison | Triggered checkpoint 7556 | -8/Garrison | X0-1V1 revealed exit location to -7/Factory 7558 | -8/Garrison | Spotted B-75 Beast 7563 | -8/Garrison | Spotted B-75 Beast 7620 | -8/Garrison | Triggered checkpoint 7686 | -8/Garrison | Garrison Relay disabled 7705 | -8/Garrison | Garrison Relay disabled 7746 | -8/Garrison | Triggered checkpoint 7825 | -8/Garrison | Core integrity restored by X0-1V1 (+144) 8030 | -8/Garrison | Entered Factory 8030 | -7/Factory | Evolved 2 slots: Utility x2 8174 | -7/Factory | Discovered new exit (range 16) 8174 | -7/Factory | Discovered new exit (range 10) 8356 | -7/Factory | Build established: Tank 8440 | -7/Factory | Identified exit to Lower Caves 8586 | -7/Factory | X0-1V1 sent you into danger 8625 | -7/Factory | Garrison activated, responded to threat 8911 | -7/Factory | X0-1V1 activates XOMVISION 9520 | -7/Factory | Identified exit to Factory 9520 | -7/Factory | X0-1V1 revealed exit location to -6/Factory 9574 | -7/Factory | X0-1V1 sent allied H-71 Marshal (x1) 9587 | -7/Factory | X0-1V1 activates XOMVISION 9659 | -7/Factory | Cargo convoy interrupted 9912 | -7/Factory | X0-1V1 downgraded hostiles (x2) 9943 | -7/Factory | Destroyed 10 combat bots 9947 | -7/Factory | Lost 4 parts (1n2u1w) 10030 | -7/Factory | First assault squad dispatched 10118 | -7/Factory | Sucked down chute 10118 | -7/Factory | Entered Waste 10119 | -7/Waste | Joined by Warlord forces that had cleared the area 10133 | -7/Waste | X0-1V1 activates XOMVISION 10309 | -7/Waste | X0-1V1 mutated your Propulsion slot to Weapon slot 10519 | -7/Waste | Discovered new exit (range 11) 10579 | -7/Waste | Entered Factory 10579 | -7/Factory | Accompanied by 15 allies 10760 | -7/Factory | X0-1V1 sent you to a vault 10816 | -7/Factory | X0-1V1 mutated your Weapon slot to Propulsion slot 10841 | -7/Factory | Lost 3 allies 10967 | -7/Factory | Identified exit to Garrison 10977 | -7/Factory | Entered Garrison 10977 | -7/Garrison | Accompanied by 14 allies 11018 | -7/Garrison | Triggered checkpoint 11023 | -7/Garrison | Triggered checkpoint 11059 | -7/Garrison | Triggered checkpoint 11091 | -7/Garrison | Destroyed 7 combat bots 11094 | -7/Garrison | Lost 3 allies 11094 | -7/Garrison | Identified exit to Factory 11094 | -7/Garrison | X0-1V1 revealed exit location to -7/Factory 11137 | -7/Garrison | Spotted B-75 Beast 11177 | -7/Garrison | Lost 7 allies 11190 | -7/Garrison | Lost 6 parts (3n2u1w) 11233 | -7/Garrison | X0-1V1 activates XOMVISION 11247 | -7/Garrison | Discovered exit to Factory (range 10) 11407 | -7/Garrison | Build established: Scavenger-Tank 11546 | -7/Garrison | Lost 3 parts (2n1u) 11753 | -7/Garrison | X0-1V1 sent hostile B-48 Gladiator (x2) 12003 | -7/Garrison | Triggered checkpoint 12019 | -7/Garrison | X0-1V1 upgraded hostiles (x2) 12053 | -7/Garrison | Core integrity fell below 50% 12080 | -7/Garrison | X0-1V1 activates XOMVISION 12185 | -7/Garrison | Garrison Relay disabled 12210 | -7/Garrison | Garrison Relay disabled 12333 | -7/Garrison | Discovered exit to Factory (range 11) 12635 | -7/Garrison | Rescued a captive Derelict 12636 | -7/Garrison | Rescued a captive Derelict 12671 | -7/Garrison | P-60 Hacker assimilated allied WF-ZAN(b) 12919 | -7/Garrison | X0-1V1 activates XOMVISION 13129 | -7/Garrison | X0-1V1 sent allied Y-54 Guardian (x5) 13147 | -7/Garrison | Lost 3 parts (2n1w) 13186 | -7/Garrison | Core integrity restored by X0-1V1 (+217) 13356 | -7/Garrison | Core integrity restored by X0-1V1 (+225) 13360 | -7/Garrison | Triggered checkpoint 13409 | -7/Garrison | Triggered checkpoint 13447 | -7/Garrison | Triggered checkpoint 13491 | -7/Garrison | Lost 3 allies 13591 | -7/Garrison | Garrison Relay disabled 13969 | -7/Garrison | Triggered checkpoint 13974 | -7/Garrison | Garrison Relay disabled 14515 | -7/Garrison | Garrison Relay disabled 14641 | -7/Garrison | Entered Factory 14641 | -7/Factory | Accompanied by 9 allies 15017 | -7/Factory | X0-1V1 enhanced Transport squad support 15069 | -7/Factory | Build established: Commander-Tank 15180 | -7/Factory | X0-1V1 sent you into danger 15187 | -7/Factory | Garrison activated, responded to threat 15237 | -7/Factory | Lost 3 allies 15248 | -7/Factory | X0-1V1 added 0b10 threat records associated with you (considerable) 15377 | -7/Factory | Garrison activated, responded to threat 15441 | -7/Factory | First assault squad dispatched 15443 | -7/Factory | System corruption reached 10% 15446 | -7/Factory | Identified exit to Garrison 15447 | -7/Factory | Entered Garrison 15447 | -7/Garrison | Accompanied by 5 allies 15467 | -7/Garrison | Triggered checkpoint 15488 | -7/Garrison | Garrison Relay disabled 15549 | -7/Garrison | Triggered checkpoint 15612 | -7/Garrison | Lost 3 allies 15653 | -7/Garrison | Build established: Tank 15694 | -7/Garrison | Discovered new exit (range 6) 15751 | -7/Garrison | Triggered checkpoint 15775 | -7/Garrison | X0-1V1 sent hostile C-17 Slicer (x1) 15779 | -7/Garrison | Triggered checkpoint 15841 | -7/Garrison | Destroyed 7 combat bots 15856 | -7/Garrison | Triggered checkpoint 15858 | -7/Garrison | X0-1V1 activates XOMVISION 15883 | -7/Garrison | Triggered checkpoint 15924 | -7/Garrison | Destroyed 8 combat bots 15979 | -7/Garrison | Triggered checkpoint 15992 | -7/Garrison | Garrison Relay disabled 16111 | -7/Garrison | Discovered new exit (range 12) 16198 | -7/Garrison | Discovered new exit (range 10) 16235 | -7/Garrison | Triggered checkpoint 16329 | -7/Garrison | Lost 3 parts (1n2w) 16375 | -7/Garrison | Garrison Relay disabled 16688 | -7/Garrison | Garrison Relay disabled 16723 | -7/Garrison | X0-1V1 sent hostile X-57 Shotgunner (x3) 16757 | -7/Garrison | Identified exit to Factory 16757 | -7/Garrison | X0-1V1 revealed exit location to -7/Factory 16874 | -7/Garrison | Found embedded Infiltrators 16880 | -7/Garrison | Build established: Scavenger-Tank 16897 | -7/Garrison | Triggered checkpoint 17137 | -7/Garrison | Entered Factory 17137 | -7/Factory | Accompanied by 2 allies 17537 | -7/Factory | First assault squad dispatched 17592 | -7/Factory | Discovered exit to Factory (range 13) 17643 | -7/Factory | X0-1V1 activates XOMVISION 17713 | -7/Factory | Forcibly received Sfc. Transmogifier from X0-1V1 17755 | -7/Factory | Entered Lower Caves 17772 | -7/Lower Caves | Met a Warlord Commander 17773 | -7/Lower Caves | Learned location of Warlord (-4) 17774 | -7/Lower Caves | Warlord Commander delivered Encrypted Comm Array 17780 | -7/Lower Caves | Found Encrypted Comm Array 17789 | -7/Lower Caves | Learned location of 1 exit from Factory 17902 | -7/Lower Caves | Found Alien Artifact 17902 | -7/Lower Caves | Identified Core Expander 17902 | -7/Lower Caves | Installed Core Expander, added new Utility slot 18097 | -7/Lower Caves | Discovered new exit (range 10) 18107 | -7/Lower Caves | Entered another Lower Caves area 18245 | -7/Lower Caves | Discovered new exit (range 10) 18256 | -7/Lower Caves | Entered Zion 18277 | -7/Zion | Acquired unknown access codes intercepted by a Zionite 18370 | -7/Zion | System corruption cleaned by Quarantine Array 18427 | -7/Zion | Discovered new exit (range 13) 18923 | -7/Zion | Given A8's code to call for help 19104 | -7/Zion | Entered Proximity Caves 19134 | -6/Proximity Caves | X0-1V1 revealed exit location to -6/Factory 19323 | -6/Proximity Caves | Spotted B-75 Beast 19323 | -6/Proximity Caves | X0-1V1 sent you into danger 19324 | -6/Proximity Caves | Entered a huge 0b10 base via the front door 19389 | -6/Proximity Caves | Entered Factory 19389 | -6/Factory | Evolved 2 slots: Propulsion x2 19390 | -6/Factory | Identified exit to Factory 19416 | -6/Factory | Lost 7 parts (1p1n3u2w) 19485 | -6/Factory | X0-1V1 redirected Transport squads to designated parking area 19650 | -6/Factory | Build established: Mutant 19941 | -6/Factory | Repaired Adv. Shield Generator 20112 | -6/Factory | Identified exit to Lower Caves 20112 | -6/Factory | X0-1V1 revealed exit location to -6/Lower Caves 20123 | -6/Factory | Build established: Gunner 20325 | -6/Factory | Discovered new exit (range 14) 20699 | -6/Factory | X0-1V1 activates XOMVISION 20771 | -6/Factory | Weapon slot count temporarily expanded by X0-1V1 (+3) 20779 | -6/Factory | Lost 6 parts (1p1n2u2w) 20872 | -6/Factory | Garrison activated, responded to threat 21083 | -6/Factory | X0-1V1 enhanced Transport squad support 21254 | -6/Factory | Build established: Skirmisher 21266 | -6/Factory | Manually triggered Chute Trap 21266 | -6/Factory | Sucked down chute 21266 | -6/Factory | Entered Waste 21358 | -6/Waste | Spotted C-40 Crusher 21369 | -6/Waste | Spotted C-40 Crusher 21421 | -6/Waste | Spotted C-40 Crusher 21441 | -6/Waste | Spotted C-40 Crusher 21472 | -6/Waste | Spotted C-40 Crusher 21477 | -6/Waste | X0-1V1 turns hostiles against one another 21487 | -6/Waste | Spotted C-40 Crusher 21487 | -6/Waste | Allies destroyed C-40 Crusher 21489 | -6/Waste | Warlord forces began an assault 21492 | -6/Waste | Allies destroyed C-40 Crusher 21494 | -6/Waste | Allies destroyed C-40 Crusher 21494 | -6/Waste | Allies destroyed C-40 Crusher 21501 | -6/Waste | Allies destroyed C-40 Crusher 21723 | -6/Waste | Build established: Mutant 21826 | -6/Waste | Discovered new exit (range 15) 21903 | -6/Waste | Identified exit to Factory 21947 | -6/Waste | Sensors blinded by X0-1V1 22039 | -6/Waste | Build established: Skirmisher 22167 | -6/Waste | Entered Factory 22167 | -6/Factory | Accompanied by 17 allies 22238 | -6/Factory | X0-1V1 sent you into danger 22320 | -6/Factory | Discovered exit to Lower Caves (range 6) 22462 | -6/Factory | Identified exit to Garrison 22467 | -6/Factory | Entered Garrison 22467 | -6/Garrison | Accompanied by 16 allies 22695 | -6/Garrison | Lost 5 allies 22799 | -6/Garrison | Build established: Scavenger-Gunner 23109 | -6/Garrison | Triggered checkpoint 23160 | -6/Garrison | Garrison Relay disabled 23203 | -6/Garrison | X0-1V1 sent you into danger 23215 | -6/Garrison | Triggered checkpoint 23245 | -6/Garrison | Triggered checkpoint 23247 | -6/Garrison | Triggered checkpoint 23432 | -6/Garrison | System corruption reached 10% 23461 | -6/Garrison | Triggered checkpoint 23514 | -6/Garrison | Build established: Scavenger-Tank 23527 | -6/Garrison | Triggered checkpoint 23527 | -6/Garrison | Garrison Relay disabled 23577 | -6/Garrison | Discovered new exit (range 10) 23791 | -6/Garrison | Triggered checkpoint 23811 | -6/Garrison | Garrison Relay disabled 23858 | -6/Garrison | Lost 4 allies 23883 | -6/Garrison | Found embedded Infiltrators 23938 | -6/Garrison | Discovered new exit (range 9) 24167 | -6/Garrison | Spotted Executioner 24167 | -6/Garrison | X0-1V1 sent you into danger 24171 | -6/Garrison | Destroyed Executioner 24238 | -6/Garrison | Destroyed Striker 24255 | -6/Garrison | Found Prototype Processor 24255 | -6/Garrison | Identified Exp. Core Analyzer 24348 | -6/Garrison | Discovered new exit (range 11) 24381 | -6/Garrison | Triggered checkpoint 24475 | -6/Garrison | Garrison Relay disabled 24565 | -6/Garrison | X0-1V1 mutated your Weapon slot to Propulsion slot 24865 | -6/Garrison | Build established: Scavenger-Mutant 24888 | -6/Garrison | Identified exit to Factory 25181 | -6/Garrison | Entered Factory 25181 | -6/Factory | Accompanied by 8 allies 25183 | -6/Factory | X0-1V1 added 0b10 threat records associated with you (major) 25294 | -6/Factory | High security lockdown imminent 25374 | -6/Factory | High security lockdown engaged 25739 | -6/Factory | Discovered exit to Factory (range 8) 25750 | -6/Factory | Core integrity fell below 50% 25750 | -6/Factory | Entered another Factory area 25750 | -5/Factory | Evolved 2 slots: Utility x1, Weapon x1 25751 | -5/Factory | Identified exit to Upper Caves 25819 | -5/Factory | Identified exit to DSF 25819 | -5/Factory | Entered DSF 25856 | -5/DSF | Discovered new exit (range 11) 25866 | -5/DSF | Additional patrols routed to DSF 25873 | -5/DSF | Entered Factory 25873 | -4/Factory | Evolved 2 slots: Utility x2 25901 | -4/Factory | Lost 6 parts (2p2u2w) 26215 | -4/Factory | Build established: Scavenger-Gunner 26303 | -4/Factory | X0-1V1 activates XOMVISION 26693 | -4/Factory | Discovered new exit (range 14) 26802 | -4/Factory | X0-1V1 sent you into danger 26835 | -4/Factory | X0-1V1 sent hostile C-35 Carver (x1) 26912 | -4/Factory | Entered Upper Caves 26944 | -4/Upper Caves | Attracted the attention of an 0b10 outpost 26985 | -4/Upper Caves | Destroyed 8 combat bots 27046 | -4/Upper Caves | Lost 5 parts (1p1n1u2w) 27152 | -4/Upper Caves | Identified exit to Upper Caves 27152 | -4/Upper Caves | X0-1V1 revealed exit location to -4/Upper Caves 27270 | -4/Upper Caves | Lost 3 parts (1p1u1w) 27310 | -4/Upper Caves | Learned location of Armory (-3) 27310 | -4/Upper Caves | Learned Research trap positions 27310 | -4/Upper Caves | Learned Armory emergency access door positions 27310 | -4/Upper Caves | Learned Research stockpile data 27310 | -4/Upper Caves | Learned Extension security intel 27310 | -4/Upper Caves | Learned Factory garrison access intel 27511 | -4/Upper Caves | Entered another Upper Caves area 27743 | -4/Upper Caves | X0-1V1 activates XOMVISION 27869 | -4/Upper Caves | Discovered new exit (range 7) 27877 | -4/Upper Caves | Entered Warlord 27919 | -4/Warlord | System corruption cleaned by Quarantine Array 28170 | -4/Warlord | Met Warlord 28195 | -4/Warlord | Warlord's base attacked by MAIN.C 28304 | -4/Warlord | Identified exit to Proximity Caves 28304 | -4/Warlord | X0-1V1 revealed exit location to -3/Proximity Caves 28373 | -4/Warlord | Found Prototype Energy Cannon 28373 | -4/Warlord | Identified Vortex Driver 28379 | -4/Warlord | Found Prototype Energy Cannon 28379 | -4/Warlord | Identified Vortex Cannon 28385 | -4/Warlord | Found Vortex Driver 28500 | -4/Warlord | Lost 4 allies 28518 | -4/Warlord | Found Prototype Reactor 28518 | -4/Warlord | Identified Vortex Chain Reactor 28524 | -4/Warlord | Lost 3 parts (1p1n1u) 28524 | -4/Warlord | Found Prototype Processor 28524 | -4/Warlord | Identified Exp. Targeting Computer 28531 | -4/Warlord | Found Prototype Device 28531 | -4/Warlord | Identified Thermal Barrier 28545 | -4/Warlord | Warlord forces counterattacked 28611 | -4/Warlord | X0-1V1 vaporized surrounding terrain (radius 15) 28657 | -4/Warlord | Spotted Striker 28704 | -4/Warlord | Spotted Striker 28732 | -4/Warlord | Lost 11 allies 28733 | -4/Warlord | Spotted Striker 28738 | -4/Warlord | Destroyed 8 combat bots 28740 | -4/Warlord | Spotted Striker 28742 | -4/Warlord | Spotted Striker 28778 | -4/Warlord | Destroyed Striker 28784 | -4/Warlord | Rewired Striker 28792 | -4/Warlord | Allies destroyed Striker 28843 | -4/Warlord | Lost 11 allies 28870 | -4/Warlord | Warlord base infiltrated, sounded retreat 28871 | -4/Warlord | Enhanced Grunt warped into view 28871 | -4/Warlord | Enhanced Grunt warped into view 28871 | -4/Warlord | Enhanced Grunt warped into view 28871 | -4/Warlord | Enhanced Demolisher warped into view 28871 | -4/Warlord | Enhanced Demolisher warped into view 28871 | -4/Warlord | Enhanced Demolisher warped into view 28975 | -4/Warlord | Spotted Executioner 28979 | -4/Warlord | Spotted Executioner 28986 | -4/Warlord | Destroyed Executioner 29009 | -4/Warlord | Found Prototype Device 29009 | -4/Warlord | Identified Adv. Kinecellerator 29029 | -4/Warlord | Spotted Striker 29040 | -4/Warlord | Spotted Executioner 29041 | -4/Warlord | Lost 9 allies 29095 | -4/Warlord | Spotted Striker 29107 | -4/Warlord | X0-1V1 activates XOMVISION 29115 | -4/Warlord | Entered Proximity Caves 29247 | -3/Proximity Caves | Received a Behemoth hack from an annoying Tinkerer 29295 | -3/Proximity Caves | Spotter reported a threat 29373 | -3/Proximity Caves | Spotter reported a threat 29465 | -3/Proximity Caves | Core integrity restored by X0-1V1 (+192) 29470 | -3/Proximity Caves | Biometal Leg reconfigured into Item Mimic 29490 | -3/Proximity Caves | X0-1V1 mutated your Propulsion slot to Weapon slot 29632 | -3/Proximity Caves | Spotter reported a threat 29758 | -3/Proximity Caves | Spotter reported a threat 29811 | -3/Proximity Caves | Spotter reported a threat 29875 | -3/Proximity Caves | Discovered new exit (range 3) 29914 | -3/Proximity Caves | System corruption reached 10% 29923 | -3/Proximity Caves | Entered Research 29923 | -3/Research | Evolved 2 slots: Propulsion x1, Utility x1 29924 | -3/Research | Identified exit to Armory 29925 | -3/Research | Loaded intel: 60 trap records 30058 | -3/Research | X0-1V1 mutated your Propulsion slot to Weapon slot 30173 | -3/Research | Search patrols dispatched 30321 | -3/Research | Build established: Scavenger-Skirmisher 30412 | -3/Research | X0-1V1 redirected Transport squads to designated parking area 30423 | -3/Research | Search patrols dispatched 30485 | -3/Research | Discovered new exit (range 11) 30508 | -3/Research | Identified exit to Research 30528 | -3/Research | X0-1V1 activates XOMVISION 30586 | -3/Research | X0-1V1 sent allied Executioner (x1) 30673 | -3/Research | Search patrols dispatched 30877 | -3/Research | Build established: Scavenger-Gunner 30878 | -3/Research | Destroyed 7 combat bots 30884 | -3/Research | Lost 6 parts (1p1u4w) 30918 | -3/Research | X0-1V1 enhanced Transport squad support 30995 | -3/Research | X0-1V1 sent you to a vault 31080 | -3/Research | Lost 3 allies 31125 | -3/Research | Destroyed 7 combat bots 31173 | -3/Research | First assault squad dispatched 31216 | -3/Research | Discovered exit to Research (range 8) 31237 | -3/Research | X0-1V1 mutated your Weapon slot to Utility slot 31401 | -3/Research | Build established: Scavenger-Skirmisher 31423 | -3/Research | Spotted B-86 Titan 31458 | -3/Research | Sensors blinded by X0-1V1 31490 | -3/Research | Discovered exit to Research (range 6) 31678 | -3/Research | Lost 3 parts (1n1u1w) 31788 | -3/Research | System corruption reached 10% 31856 | -3/Research | X0-1V1 sent you into danger 31920 | -3/Research | X0-1V1 vaporized surrounding terrain (radius 23) 31948 | -3/Research | X0-1V1 whisked you away to safety 32020 | -3/Research | X0-1V1 activates XOMVISION 32053 | -3/Research | Core integrity restored by X0-1V1 (+283) 32103 | -3/Research | Found Unknown Device 32103 | -3/Research | Identified Launcher Loader 32233 | -3/Research | Identified exit to Quarantine 32233 | -3/Research | X0-1V1 revealed exit location to -3/Quarantine 32417 | -3/Research | Spotted B-90 Cyclops 32438 | -3/Research | Entered Quarantine 32450 | -3/Quarantine | Found Alien Slashing Weapon 32476 | -3/Quarantine | Found Alien Impact Weapon 32557 | -3/Quarantine | X0-1V1 sent you to a vault 32558 | -3/Quarantine | Found Alien Artifact 32566 | -3/Quarantine | Found Prototype Device 32566 | -3/Quarantine | Identified Exp. Thermal Shield 32578 | -3/Quarantine | Found Prototype Ballistic Gun 32578 | -3/Quarantine | Identified Multirail 32583 | -3/Quarantine | X0-1V1 activates XOMVISION 32589 | -3/Quarantine | Found Prototype Device 32589 | -3/Quarantine | Identified System Purifier 33013 | -3/Quarantine | Identified Sigix Broadsword 33027 | -3/Quarantine | X0-1V1 activates XOMVISION 33066 | -3/Quarantine | Repaired Helical Railgun 33221 | -3/Quarantine | Found Alien Reactor 33234 | -3/Quarantine | X0-1V1 added 0b10 threat records associated with you (considerable) 33438 | -3/Quarantine | First assault squad dispatched 33532 | -3/Quarantine | Identified Transdimensional Reconstructor 33532 | -3/Quarantine | Warped through subspace 33636 | -3/Quarantine | X0-1V1 sent hostile Y-72 Warden (x2) 33665 | -3/Quarantine | Garrison activated, responded to threat 33696 | -3/Quarantine | System corruption reached 30% 33751 | -3/Quarantine | X0-1V1 turns hostiles against one another 33788 | -3/Quarantine | Lost 13 parts (3p3n3u4w) 33855 | -3/Quarantine | Core integrity fell below 50% 33916 | -3/Quarantine | Core integrity fell below 20% 33933 | -3/Quarantine | Lost 11 parts (2p4n1u4w) 33956 | -3/Quarantine | X0-1V1 downgraded hostiles (x2) 33972 | -3/Quarantine | Identified exit to Protoforge 33972 | -3/Quarantine | X0-1V1 revealed exit location to -3/Protoforge 33973 | -3/Quarantine | Discovered exit to Research (range 11) 33981 | -3/Quarantine | Entered Research 33981 | -2/Research | Warlord forces began assault on 0b10 33981 | -2/Research | Evolved 2 slots: Propulsion x1, Utility x1 34006 | -2/Research | Distinguished unit "Lair Dwellers" dispatched to help 34006 | -2/Research | Distinguished unit "Golden Rifle" dispatched to help 34058 | -2/Research | Build established: Mutant 34091 | -2/Research | Research machine network offline 34310 | -2/Research | Discovered new exit (range 10) 34323 | -2/Research | Borebot progress halted 34325 | -2/Research | Identified exit to Access 34351 | -2/Research | Found Prototype Launcher 34351 | -2/Research | Identified Tesla Bomb Launcher 34404 | -2/Research | Met up with Warlord 34505 | -2/Research | Build established: Scavenger-Tank 34974 | -2/Research | Found Prototype Processor 34974 | -2/Research | Identified Exp. Melee Analysis Suite 35056 | -2/Research | X0-1V1 sent you to a vault 35168 | -2/Research | Found Exp. Core Analyzer 35203 | -2/Research | Found Exp. Targeting Computer 35325 | -2/Research | Spotted Striker 35325 | -2/Research | Spotted Striker 35334 | -2/Research | Borebot progress halted 35350 | -2/Research | Weapon slot count temporarily expanded by X0-1V1 (+2) 35353 | -2/Research | X0-1V1 vaporized surrounding terrain (radius 19) 35370 | -2/Research | Spotted Executioner 35370 | -2/Research | Spotted Striker 35374 | -2/Research | Destroyed Striker 35377 | -2/Research | Lost 4 allies 35382 | -2/Research | Found Adv. Kinecellerator 35465 | -2/Research | Spotted Executioner 35467 | -2/Research | Allies destroyed Executioner 35476 | -2/Research | Spotted Striker 35490 | -2/Research | Spotted Executioner 35491 | -2/Research | Given Cave Seal Controls access code 35491 | -2/Research | Spotted Striker 35500 | -2/Research | Allies destroyed Executioner 35532 | -2/Research | Discovered exit to Access (range 5) 35547 | -2/Research | Lost 14 allies 35584 | -2/Research | Spotted Striker 35615 | -2/Research | X0-1V1 whisked you away to safety 35644 | -2/Research | Lost 3 parts (1p1u1w) 35909 | -2/Research | Found Prototype Hackware 35909 | -2/Research | Identified Exp. System Shield 35977 | -2/Research | Borebot progress halted 36035 | -2/Research | Discovered exit to Access (range 6) 36087 | -2/Research | Found Fusion Bomb Launcher 36268 | -2/Research | Discovered new exit (range 5) 36272 | -2/Research | Identified exit to Testing 36282 | -2/Research | Entered Testing 36390 | -2/Testing | Found Prototype Protection 36390 | -2/Testing | Identified Hvy. Regenerative Plating 36408 | -2/Testing | Found Hvy. Regenerative Plating 36515 | -2/Testing | Found Prototype Energy Cannon 36515 | -2/Testing | Identified Null Cannon 36552 | -2/Testing | X0-1V1 sent hostile B-86 Titan (x1) 36552 | -2/Testing | Spotted B-86 Titan 36603 | -2/Testing | Destroyed B-86 Titan 36642 | -2/Testing | X0-1V1 mutated your Utility slot to Weapon slot 36664 | -2/Testing | X0-1V1 sent hostile Savage (x1) 36672 | -2/Testing | Build established: Scavenger-Gunner 36750 | -2/Testing | X0-1V1 activates XOMVISION 36781 | -2/Testing | Spotted Striker 36791 | -2/Testing | Spotted Striker 36803 | -2/Testing | Destroyed Striker 36827 | -2/Testing | Destroyed Striker 36842 | -2/Testing | Lost 3 parts (1p2u) 36897 | -2/Testing | Found Gui. Micro-nuke Launcher 37005 | -2/Testing | Found Prototype Device 37005 | -2/Testing | Identified Exp. EM Shield 37032 | -2/Testing | First assault squad dispatched 37122 | -2/Testing | X0-1V1 turns hostiles against one another 37193 | -2/Testing | Found Prototype Energy Gun 37193 | -2/Testing | Identified Warp Gun 37312 | -2/Testing | Sensors blinded by X0-1V1 37501 | -2/Testing | Destroyed 10 combat bots 37646 | -2/Testing | Scanned by Researcher 37749 | -2/Testing | X0-1V1 mutated your Weapon slot to Utility slot 37814 | -2/Testing | Discovered exit to Access (range 12) 37987 | -2/Testing | System corruption reached 10% 38005 | -2/Testing | X0-1V1 sent you to a vault 38065 | -2/Testing | Build established: Scavenger-Mutant 38087 | -2/Testing | Weapon slot count temporarily expanded by X0-1V1 (+2) 38130 | -2/Testing | Exp. Reaction Control System reconfigured into Item Mimic 38235 | -2/Testing | System corruption reached 30% 38243 | -2/Testing | Destroyed 14 combat bots 38290 | -2/Testing | Found Prototype Leg 38290 | -2/Testing | Identified Myomer Exoskeleton 38378 | -2/Testing | Watched by a mysterious "MATRIX" hacker 38456 | -2/Testing | X0-1V1 downgraded hostiles (x2) 38569 | -2/Testing | Build established: Scavenger-Gunner 38648 | -2/Testing | Entered Access 38648 | -1/Access | Evolved 2 slots: Utility x1, Weapon x1 38762 | -1/Access | X0-1V1 sent you to a vault 38791 | -1/Access | Found Prototype Device 38791 | -1/Access | Identified Imp. Particle Accelerator 38809 | -1/Access | Found Prototype Device 38809 | -1/Access | Identified Exp. Phase Shifter 38929 | -1/Access | X0-1V1 activates XOMVISION 39398 | -1/Access | First assault squad dispatched 39526 | -1/Access | Destroyed 8 combat bots 39944 | -1/Access | High security lockdown imminent 40024 | -1/Access | High security lockdown engaged 40059 | -1/Access | Spotted Striker 40059 | -1/Access | Spotted Striker 40082 | -1/Access | X0-1V1 sent allied Wasp (x5) 40106 | -1/Access | Lost 3 parts (1n1u1w) 40113 | -1/Access | Destroyed Striker 40124 | -1/Access | Lost 5 allies 40166 | -1/Access | Destroyed 10 combat bots 40180 | -1/Access | X0-1V1 activates XOMVISION 40192 | -1/Access | Identified exit to Command 40192 | -1/Access | X0-1V1 revealed exit location to -1/Command 40224 | -1/Access | Spotted Investigator 40229 | -1/Access | X0-1V1 sent allied C-57 Dissector (x2) 40239 | -1/Access | X0-1V1 destroyed Energy Cycler 40239 | -1/Access | Energy Cycler disabled 40332 | -1/Access | X0-1V1 mutated your Weapon slot to Propulsion slot 40451 | -1/Access | X0-1V1 whisked you away to safety 40564 | -1/Access | Destroyed 8 combat bots 40572 | -1/Access | X0-1V1 activates XOMVISION 40573 | -1/Access | Lost 6 parts (1p1n2u2w) 40596 | -1/Access | Spotted Executioner 40609 | -1/Access | System corruption reached 10% 40634 | -1/Access | Spotted Executioner 40634 | -1/Access | Spotted Striker 40644 | -1/Access | Crushed by falling debris 40650 | -1/Access | X0-1V1 turns hostiles against one another 40656 | -1/Access | Crushed by falling debris 40664 | -1/Access | X0-1V1 sent allied B-90 Cyclops (x2) 40690 | -1/Access | Lost 5 allies 40698 | -1/Access | Lost 14 parts (3p1n7u3w) 40732 | -1/Access | Entered Command 40742 | -1/Command | System corruption reached 30% 40759 | -1/Command | Core integrity fell below 50% 40884 | -1/Command | X0-1V1 sent hostile Thug (x2) 40900 | -1/Command | X0-1V1 mutated your Propulsion slot to Weapon slot 40910 | -1/Command | Found Quantum Capacitor 40916 | -1/Command | X0-1V1 whisked you away to safety 40944 | -1/Command | Build established: Mutant 40949 | -1/Command | Spotted B-99 Colossus 40982 | -1/Command | First assault squad dispatched 40994 | -1/Command | Lost 4 parts (2n1u1w) 41011 | -1/Command | Disengaged cave seal 41011 | -1/Command | Welcomed Warlord to Command 41013 | -1/Command | High security lockdown imminent 41029 | -1/Command | Enhanced Grunt warped into view, answering call for help 41043 | -1/Command | X0-1V1 sent you to a vault 41044 | -1/Command | Enhanced Grunt warped into view, answering call for help 41093 | -1/Command | High security lockdown engaged 41113 | -1/Command | Spotted Striker 41131 | -1/Command | Combat Programmer assimilated allied RO-8F7(g) 41131 | -1/Command | Spotted Alpha 7 41134 | -1/Command | Core integrity fell below 20% 41134 | -1/Command | Spotted M Guard 41134 | -1/Command | Spotted M Guard 41135 | -1/Command | Spotted Combat Programmer 41141 | -1/Command | Derelicts emerged from the dark tunnel 41153 | -1/Command | Combat Programmer assimilated allied VA-CPH(L) 41155 | -1/Command | Spotted VA-CPH(L) 41169 | -1/Command | Lost 21 allies 41186 | -1/Command | Warlord commented on Warlord statues 41254 | -1/Command | All MAIN.C guards destroyed 41257 | -1/Command | Found Prototype Launcher 41257 | -1/Command | Spotted Striker 41259 | -1/Command | Found Prototype Energy Cannon 41259 | -1/Command | Identified Cld. Nova Cannon 41259 | -1/Command | Spotted Executioner 41261 | -1/Command | Spotted Alpha 7 41262 | -1/Command | Spotted Executioner 41264 | -1/Command | Spotted Executioner 41264 | -1/Command | Spotted Executioner 41265 | -1/Command | Spotted Executioner 41268 | -1/Command | Spotted Striker 41304 | -1/Command | Lost 15 allies 41313 | -1/Command | Met MAIN.C 41318 | -1/Command | 0b10 Conduit disabled 41364 | -1/Command | Found Adv. Particle Accelerator 41391 | -1/Command | MAIN.C activated Command garrisons 41395 | -1/Command | Discovered new exit (range 13) 41426 | -1/Command | Core integrity restored by X0-1V1 (+363) 41434 | *** | Escaped! Last Messages --------------- 41318_ 0b10 Conduit disabled. 41320_ System corrupted: Matter fused (-8). X0-1V1's Piety Tracker suddenly appears amidst shimmering waves of color. 41325_ System corrupted: Enh. Hardcell Cannon jammed. 41336_ 34FB#N&180UDDSR VFJ5YT Q3USJWZX/JXKQB 41354_ System corrupted: Heat flow error (+185). 41363_ ALERT: Heavy assault forces dispatched. 41365_ Heavy Barrier breached. 41372_ System corrupted: FCS attempts to trigger Cld. Nova Cannon. 41390_ O-24 Administrator: "IFF HANDSHAKE FAILED. SECURING TERMINAL." Heavy Barrier opened. 41391_ ALERT: All Command garrisons activated. 41392_ System corrupted: Heat flow error (+248). 41395_ EXIT=FOUND 41408_ System corrupted: Heat flow error (+278). 41413_ X0-1V1 sends the all clear message. (reinforcement recalled) X0-1V1's Piety Tracker suddenly appears amidst shimmering waves of color. 41417_ Acquired X0-1V1's Piety Tracker. 41426_ X0-1V1: "See? It buffs right out!" (+363 core integrity) 41427_ 4I R1HI8V UUDI C4||CSUD Map ----- +----------------------------------------------------+ | ?????????????????????????????????????????????????? | | ?????????????????????????????????????????????????? | | ?????????????????????????????????????????????????? | | ?????????????????????????????????????????????????? | | ?????????????????????????????????????????????????? | | ?????????????????????????????????????????????????? | | ?????????????????????????????????????????????????? | | ?????????????????????????????????????????????????? | | ?????????????????????????????????????????????????? | | ?????????????????????????????????????????????????? | | ?????????????????????????????????????????????????? | | ?????????????????????????????????????????????????? | | ?????????????????????????????????????????????????? | | ?????????????????????????????????????????????????? | | ?????????????????????????????????????????????????? | | ?????????????????????????????????????????????????? | | ?????????????????????????????????????????????????? | | ?????????????????????????????????????????????????? | | ?????????????????????????????????????????????????? | | ?????????????????????????????????????????????????? | | ?????????????????????????????????????????????????? | | ?????????????????????????????????????????????????? | | ?????????????????????????????????????????????????? | | ???????????????????????######???????????????? "?? | | ???????????????????????# #??????????????"? "?? | | ???????????????????????# @ #?????????????? ? """ | | ???????????????????????# #?????????????# " | | ???????????????????????### 7#?????????????# " | | ?????????????????????????# #?????????????#""""""" | | ?????????????????????????# #?????????????#"" | | ?????????????????????????# #?????????????# | | ?????????????????????????# #?????????????# | | ?????????????????????????# ############### | | ?????????????????????????# | | ?????????????????????????# " | | ??????????????????????#### " | | ??????????????????????/ ##### """" | | ?????????????????? # #???# "" | | ?????????????? ???# #???# | | ????????????? ???????# "" #???######## | | ??????????????????????# """" #??????????? | | ??????????????????????+ """" #??????????? | | ??????????????????????#^ "" #??????????? | | ??????????????????????# #??????????? | | ??????????????????????# ""?????????? | | ??????????????????????# ""?????????? | | ??????????????????????# T"?????????? | | ??????????????????????# "" "" ""?????????? | | ??????????????????????# ""T"" "??????????? | | ??????????????????????# ?""" #??????????? | +----------------------------------------------------+ Best States ------------- Heat Dissipation 209 Energy Generation 92 Energy Capacity 2000 Matter Stores 927 Matter Capacity 1100 Sight Range 25 Robot Scan Range 16 Terrain Scan Range 20 Terrain Scan Density 210 Jamming Range 14 Power Amplification 40 Armor Coverage 1200 Resistance: KI 30 Resistance: TH 50 Resistance: EM 90 Propulsion Shielding 33 Utility Shielding 66 Point Defense Rating 80 Weapon Cycling 25 Phase Shifting 20 Evasion (%) 99 Targeting Accuracy 12 Target Analysis 8 Core Analysis 8 Armor Integrity Analysis 40 Recoil Reduction 5 Matter Filtering 30 Particle Charging 40 Kinecelleration 50 Defensive Hacking 16 Item Schematics ----------------- Hcp. Storage Unit | -7/Factory | Hacked Hvy. Missile Launcher | -7/Zion | Archive Adv. Melee Analysis Suite | -7/Zion | Archive Imp. Carbon-fiber Leg | -7/Zion | Archive Imp. Trap Scanner | -7/Zion | Archive Imp. System Restoration Module | -7/Zion | Archive Imp. Cooling System | -7/Zion | Archive Lrn. Proton Cannon | -7/Zion | Archive Imp. Thermal Shield | -7/Zion | Archive Imp. Deuterium Engine | -7/Zion | Archive Plasma Rifle | -7/Zion | Archive Hvy. Rocket Launcher | -7/Zion | Archive Imp. Hacking Suite | -7/Zion | Archive Microactuators | -7/Zion | Archive Nuclear Pulse Thruster | -7/Zion | Archive HERF Cannon | -7/Zion | Archive Thermal Defense Suite | -2/Testing | Archive Gui. Micro-nuke Launcher | -2/Testing | Archive Enh. Force Rifle | -2/Testing | Archive Hds. Centrium Leg | -2/Testing | Archive Exp. Optical Array | -2/Testing | Archive Robot Schematics ------------------ R-06 Scavenger | -7/Zion | Archive T-07 Excavator | -7/Zion | Archive W-25 Informer | -7/Zion | Archive Fabricated ------------ Nothing Repaired ---------- Imp. EM Shotgun | 57% | -9/Storage Adv. Shield Generator | 36% | -6/Factory Helical Railgun | 10% | -3/Quarantine Studied --------- Arm. Huge Wheel | -7/Factory | Hacked Arm. Wheel | -7/Factory | Hacked Lgt. Treads | -7/Factory | Hacked Flexi-carbon Leg | -4/Factory | Hacked KE Penetrator | -4/Factory | Hacked Lgt. Quantum Reactor | -2/Testing | Hacked Alien Tech Used ----------------- Core Expander Sigix Broadsword Transdimensional Reconstructor Achievements -------------- My Business Is Booming Challenges ------------ None Game ------ Seed DisruptorStormFlightbrick Manual? 0 Play Time 10:07:01 Cumulative 503.0 hours Start 2026.07.05 @ 20:11:48 End 2026.07.06 @ 19:26:56 Sessions 3 Manual Loads 0 Difficulty Rogue Special Mode None Game No. 217 Rogue 217 Adventurer 0 Explorer 0 Win Type 0 Total 28 Types 14/2/4/2/1/1/1/1/1/1 Lore% 89 Gallery% 80 Achievement% 75 Wizard Run 0 Options --------- Layout 0 ASCII 0 Keyboard 1 Movement Arrows Keybinds 0 Fullscreen 2 Font 18/Terminus Map View 76x50 Zoom Use 0% Tactical HUD 1 Map Filters BRIGHTNESS(90)|SATURATION(90) Filters NONE Steam 1 RUN: a0940d24-5639-46fd-be7c-3ab0be785051